Department family,Entity,Date,Expense type,Expense area,Supplier,Transaction number,Amount,VAT registration number,
Department for Business Innovation and Skills,Intellectual Property Office,17/11/2014,Computer Hardware,Business Support Directorate,Kelway (UK) Ltd,PSINV01273699,14241.17,Not applicable,
Department for Business Innovation and Skills,Intellectual Property Office,18/11/2014,Agency Staff,Trade Marks Directorate,Brook Street (UK) Ltd,30733028,329.66,Not applicable,
Department for Business Innovation and Skills,Intellectual Property Office,18/11/2014,Agency Staff,Trade Marks Directorate,Brook Street (UK) Ltd,30720061,396.29,Not applicable,
Department for Business Innovation and Skills,Intellectual Property Office,07/11/2014,Agency Staff,"People, Property and Services Directorate",Hays Specialist Recruitment,1004660515,476.56,Not applicable,
Department for Business Innovation and Skills,Intellectual Property Office,28/11/2014,Agency Staff,Trade Marks Directorate,Brook Street (UK) Ltd,30758552,508.51,Not applicable,
Department for Business Innovation and Skills,Intellectual Property Office,03/11/2014,Agency Staff,Trade Marks Directorate,Brook Street (UK) Ltd,30707566,508.57,Not applicable,
Department for Business Innovation and Skills,Intellectual Property Office,21/11/2014,Agency Staff,Trade Marks Directorate,Brook Street (UK) Ltd,30745184,526.06,Not applicable,
Department for Business Innovation and Skills,Intellectual Property Office,03/11/2014,Agency Staff,Patents Directorate,Brook Street (UK) Ltd,30707566,537.74,Not applicable,
Department for Business Innovation and Skills,Intellectual Property Office,18/11/2014,Agency Staff,Patents Directorate,Brook Street (UK) Ltd,30720061,552.60,Not applicable,
Department for Business Innovation and Skills,Intellectual Property Office,28/11/2014,Agency Staff,Patents Directorate,Brook Street (UK) Ltd,30758552,552.60,Not applicable,
Department for Business Innovation and Skills,Intellectual Property Office,18/11/2014,Agency Staff,Patents Directorate,Brook Street (UK) Ltd,30733028,552.60,Not applicable,
Department for Business Innovation and Skills,Intellectual Property Office,21/11/2014,Agency Staff,Patents Directorate,Brook Street (UK) Ltd,30745184,552.60,Not applicable,
Department for Business Innovation and Skills,Intellectual Property Office,03/11/2014,Agency Staff,"People, Property and Services Directorate",Hays Specialist Recruitment,1004831353,580.33,Not applicable,
Department for Business Innovation and Skills,Intellectual Property Office,12/11/2014,Agency Staff,"People, Property and Services Directorate",Hays Specialist Recruitment,1004863688,612.23,Not applicable,
Department for Business Innovation and Skills,Intellectual Property Office,21/11/2014,Agency Staff,Trade Marks Directorate,Brook Street (UK) Ltd,30745184,763.04,Not applicable,
Department for Business Innovation and Skills,Intellectual Property Office,28/11/2014,Agency Staff,Trade Marks Directorate,Brook Street (UK) Ltd,30758552,774.01,Not applicable,
Department for Business Innovation and Skills,Intellectual Property Office,10/11/2014,Agency Staff,Copyright and IP Enforcement Directorate,Michael Page International Recruitment Ltd,5730532,885.78,Not applicable,
Department for Business Innovation and Skills,Intellectual Property Office,18/11/2014,Agency Staff,Copyright and IP Enforcement Directorate,Michael Page International Recruitment Ltd,5235027,885.78,Not applicable,
Department for Business Innovation and Skills,Intellectual Property Office,25/11/2014,Agency Staff,Copyright and IP Enforcement Directorate,Michael Page International Recruitment Ltd,5738341,906.88,Not applicable,
Department for Business Innovation and Skills,Intellectual Property Office,03/11/2014,Agency Staff,"People, Property and Services Directorate",Brook Street (UK) Ltd,30707566,947.52,Not applicable,
Department for Business Innovation and Skills,Intellectual Property Office,03/11/2014,Agency Staff,Trade Marks Directorate,Brook Street (UK) Ltd,30707566,964.78,Not applicable,
Department for Business Innovation and Skills,Intellectual Property Office,18/11/2014,Agency Staff,Trade Marks Directorate,Brook Street (UK) Ltd,30720061,967.51,Not applicable,
Department for Business Innovation and Skills,Intellectual Property Office,18/11/2014,Agency Staff,Trade Marks Directorate,Brook Street (UK) Ltd,30733028,978.47,Not applicable,
Department for Business Innovation and Skills,Intellectual Property Office,18/11/2014,Agency Staff,"People, Property and Services Directorate",Brook Street (UK) Ltd,30733028,1006.49,Not applicable,
Department for Business Innovation and Skills,Intellectual Property Office,21/11/2014,Agency Staff,"People, Property and Services Directorate",Brook Street (UK) Ltd,30745184,1013.50,Not applicable,
Department for Business Innovation and Skills,Intellectual Property Office,28/11/2014,Agency Staff,"People, Property and Services Directorate",Brook Street (UK) Ltd,30758552,1062.62,Not applicable,
Department for Business Innovation and Skills,Intellectual Property Office,18/11/2014,Agency Staff,"People, Property and Services Directorate",Brook Street (UK) Ltd,30720061,1069.63,Not applicable,
Department for Business Innovation and Skills,Intellectual Property Office,03/11/2014,Agency Staff,Copyright and IP Enforcement Directorate,Michael Page International Recruitment Ltd,5726890,1075.60,Not applicable,
Department for Business Innovation and Skills,Intellectual Property Office,14/11/2014,Bonus Provision,"People, Property and Services Directorate",Department For Business Innovation & Skills,6.1511E+11,633.00,Not applicable,
Department for Business Innovation and Skills,Intellectual Property Office,17/11/2014,Training,"People, Property and Services Directorate",British Red Cross,C445108,-260.00,Not applicable,
Department for Business Innovation and Skills,Intellectual Property Office,06/11/2014,Training,"People, Property and Services Directorate",Teamworks,2313-14-IPO-SUP-10-14,67.50,Not applicable,
Department for Business Innovation and Skills,Intellectual Property Office,26/11/2014,Training,Finance Directorate,Personal expenses name witheld,52624,126.00,Not applicable,
Department for Business Innovation and Skills,Intellectual Property Office,07/11/2014,Training,Patents Directorate,Business Language Services Ltd,14197,142.00,Not applicable,
Department for Business Innovation and Skills,Intellectual Property Office,06/11/2014,Training,Patents Directorate,Jisc Collections,46333,175.00,Not applicable,
Department for Business Innovation and Skills,Intellectual Property Office,21/11/2014,Training,"People, Property and Services Directorate",Institute for Continuous Improvement in the Public Sector (ICiPS),203,225.00,Not applicable,
Department for Business Innovation and Skills,Intellectual Property Office,17/11/2014,Training,"People, Property and Services Directorate",British Red Cross,N921046,345.00,Not applicable,
Department for Business Innovation and Skills,Intellectual Property Office,18/11/2014,Training,"People, Property and Services Directorate",British Computer Society,1379924,351.00,Not applicable,
Department for Business Innovation and Skills,Intellectual Property Office,19/11/2014,Training,Finance Directorate,East of England Ambulance NHS Trust,652735,480.00,Not applicable,
Department for Business Innovation and Skills,Intellectual Property Office,13/11/2014,Training,Business Support Directorate,British Computer Society,1379610,495.00,Not applicable,
Department for Business Innovation and Skills,Intellectual Property Office,17/11/2014,Training,Business Support Directorate,British Standards Institution,94122308-1000,505.00,Not applicable,
Department for Business Innovation and Skills,Intellectual Property Office,13/11/2014,Training,Innovation Directorate,South Wales Chamber of Commerce,99102,600.00,Not applicable,
Department for Business Innovation and Skills,Intellectual Property Office,17/11/2014,Training,Patents Directorate,University of  South Wales,OP-I031503,658.50,Not applicable,
Department for Business Innovation and Skills,Intellectual Property Office,17/11/2014,Training,Innovation Directorate,University of  South Wales,OP-I031503,658.50,Not applicable,
Department for Business Innovation and Skills,Intellectual Property Office,17/11/2014,Training,Innovation Directorate,University of  South Wales,OP-I031504,658.50,Not applicable,
Department for Business Innovation and Skills,Intellectual Property Office,17/11/2014,Training,Patents Directorate,University of  South Wales,OP-I031503,658.50,Not applicable,
Department for Business Innovation and Skills,Intellectual Property Office,17/11/2014,Training,Trade Marks Directorate,University of  South Wales,OP-I031504,658.50,Not applicable,
Department for Business Innovation and Skills,Intellectual Property Office,13/11/2014,Training,International Policy Directorate,London School of Economics & Political Science,CIBL20141110,1000.00,Not applicable,
Department for Business Innovation and Skills,Intellectual Property Office,10/11/2014,Training,Central Support,RADA Enterprise,12202,1369.00,Not applicable,
Department for Business Innovation and Skills,Intellectual Property Office,28/11/2014,Training,Copyright and IP Enforcement Directorate,Windsor Leadership Trust,339,4250.00,Not applicable,
Department for Business Innovation and Skills,Intellectual Property Office,17/11/2014,Training,Patents Directorate,University of  South Wales,OP-I031504,7243.50,Not applicable,
Department for Business Innovation and Skills,Intellectual Property Office,17/11/2014,Training,Patents Directorate,University of  South Wales,OP-I031504,7902.00,Not applicable,
Department for Business Innovation and Skills,Intellectual Property Office,04/11/2014,Training,"People, Property and Services Directorate",Capita Business Services  Ltd,X51819,1332.00,Not applicable,
Department for Business Innovation and Skills,Intellectual Property Office,05/11/2014,Subscription to Professional bodies,"People, Property and Services Directorate",Personal expenses name witheld,52595,108.20,Not applicable,
Department for Business Innovation and Skills,Intellectual Property Office,26/11/2014,Subscription to Professional bodies,"People, Property and Services Directorate",Personal expenses name witheld,52622,137.00,Not applicable,
Department for Business Innovation and Skills,Intellectual Property Office,11/11/2014,Subscription to Professional bodies,"People, Property and Services Directorate",Personal expenses name witheld,52607,167.00,Not applicable,
Department for Business Innovation and Skills,Intellectual Property Office,26/11/2014,Childcare costs,"People, Property and Services Directorate",P&MM Ltd Re Childcare Plus,502567,92.92,Not applicable,
Department for Business Innovation and Skills,Intellectual Property Office,26/11/2014,Childcare costs,"People, Property and Services Directorate",P&MM Ltd Re Childcare Plus,502573,262.60,Not applicable,
Department for Business Innovation and Skills,Intellectual Property Office,26/11/2014,Childcare costs,"People, Property and Services Directorate",P&MM Ltd Re Childcare Plus,502571,5599.04,Not applicable,
Department for Business Innovation and Skills,Intellectual Property Office,26/11/2014,Childcare costs,"People, Property and Services Directorate",P&MM Ltd Re Childcare Plus,1018290,7411.53,Not applicable,
Department for Business Innovation and Skills,Intellectual Property Office,28/11/2014,Relocation Removals & Excess Fare,"People, Property and Services Directorate",Somerset Bencoolen,24925,3509.91,Not applicable,
Department for Business Innovation and Skills,Intellectual Property Office,18/11/2014,Recruitment Advertising,Patents Directorate,Monster Worldwide Ltd,100207269,228.00,Not applicable,
Department for Business Innovation and Skills,Intellectual Property Office,20/11/2014,Recruitment Advertising,Patents Directorate,Kings College London,SINV1503179,420.00,Not applicable,
Department for Business Innovation and Skills,Intellectual Property Office,28/11/2014,Recruitment Advertising,Patents Directorate,University of Exeter,EA0119267,510.00,Not applicable,
Department for Business Innovation and Skills,Intellectual Property Office,20/11/2014,Recruitment Advertising,Patents Directorate,Crimson Publishing Ltd,CP100557,750.00,Not applicable,
Department for Business Innovation and Skills,Intellectual Property Office,03/11/2014,Recruitment Advertising,Patents Directorate,Graduate-jobs.com Ltd,2502930,1509.60,Not applicable,
Department for Business Innovation and Skills,Intellectual Property Office,12/11/2014,Recruitment Advertising,Patents Directorate,IET Services Ltd,50009203,1680.00,Not applicable,
Department for Business Innovation and Skills,Intellectual Property Office,06/11/2014,Recruitment Advertising,Patents Directorate,Reed Business Information,20800613,1908.00,Not applicable,
Department for Business Innovation and Skills,Intellectual Property Office,06/11/2014,Recruitment Advertising,"People, Property and Services Directorate",Acorn Recruitment Ltd,APS02623,3001.98,Not applicable,
Department for Business Innovation and Skills,Intellectual Property Office,28/11/2014,Travel and subsistence UK,Patents Directorate,HRG UK,240972733,-213.37,Not applicable,
Department for Business Innovation and Skills,Intellectual Property Office,28/11/2014,Travel and subsistence UK,Patents Directorate,HRG UK,240972734,-213.37,Not applicable,
Department for Business Innovation and Skills,Intellectual Property Office,28/11/2014,Travel and subsistence UK,Copyright and IP Enforcement Directorate,HRG UK,240972641,-200.65,Not applicable,
Department for Business Innovation and Skills,Intellectual Property Office,28/11/2014,Travel and subsistence UK,Patents Directorate,HRG UK,240972603,-190.87,Not applicable,
Department for Business Innovation and Skills,Intellectual Property Office,28/11/2014,Travel and subsistence UK,"People, Property and Services Directorate",HRG UK,426132468,-98.70,Not applicable,
Department for Business Innovation and Skills,Intellectual Property Office,28/11/2014,Travel and subsistence UK,"People, Property and Services Directorate",HRG UK,426132466,-98.70,Not applicable,
Department for Business Innovation and Skills,Intellectual Property Office,28/11/2014,Travel and subsistence UK,Innovation Directorate,HRG UK,426199255,-88.65,Not applicable,
Department for Business Innovation and Skills,Intellectual Property Office,28/11/2014,Travel and subsistence UK,Innovation Directorate,HRG UK,426199256,-84.13,Not applicable,
Department for Business Innovation and Skills,Intellectual Property Office,28/11/2014,Travel and subsistence UK,Copyright and IP Enforcement Directorate,HRG UK,426216735,-80.82,Not applicable,
Department for Business Innovation and Skills,Intellectual Property Office,28/11/2014,Travel and subsistence UK,Patents Directorate,HRG UK,426199268,-68.38,Not applicable,
Department for Business Innovation and Skills,Intellectual Property Office,28/11/2014,Travel and subsistence UK,Innovation Directorate,HRG UK,426047068,-56.04,Not applicable,
Department for Business Innovation and Skills,Intellectual Property Office,28/11/2014,Travel and subsistence UK,"People, Property and Services Directorate",HRG UK,426132465,-16.24,Not applicable,
Department for Business Innovation and Skills,Intellectual Property Office,28/11/2014,Travel and subsistence UK,"People, Property and Services Directorate",HRG UK,426132467,-16.24,Not applicable,
Department for Business Innovation and Skills,Intellectual Property Office,28/11/2014,Travel and subsistence UK,Business Support Directorate,HRG UK,426155087,2.57,Not applicable,
Department for Business Innovation and Skills,Intellectual Property Office,28/11/2014,Travel and subsistence UK,International Policy Directorate,HRG UK,426077094,2.57,Not applicable,
Department for Business Innovation and Skills,Intellectual Property Office,28/11/2014,Travel and subsistence UK,International Policy Directorate,HRG UK,240961180,2.57,Not applicable,
Department for Business Innovation and Skills,Intellectual Property Office,28/11/2014,Travel and subsistence UK,Innovation Directorate,HRG UK,426105388,2.57,Not applicable,
Department for Business Innovation and Skills,Intellectual Property Office,28/11/2014,Travel and subsistence UK,Copyright and IP Enforcement Directorate,HRG UK,426040183,2.57,Not applicable,
Department for Business Innovation and Skills,Intellectual Property Office,28/11/2014,Travel and subsistence UK,Copyright and IP Enforcement Directorate,HRG UK,426189343,2.57,Not applicable,
Department for Business Innovation and Skills,Intellectual Property Office,28/11/2014,Travel and subsistence UK,International Policy Directorate,HRG UK,240917284,2.57,Not applicable,
Department for Business Innovation and Skills,Intellectual Property Office,28/11/2014,Travel and subsistence UK,International Policy Directorate,HRG UK,240995519,2.57,Not applicable,
Department for Business Innovation and Skills,Intellectual Property Office,28/11/2014,Travel and subsistence UK,Innovation Directorate,HRG UK,426175844,2.57,Not applicable,
Department for Business Innovation and Skills,Intellectual Property Office,28/11/2014,Travel and subsistence UK,Innovation Directorate,HRG UK,426092141,2.57,Not applicable,
Department for Business Innovation and Skills,Intellectual Property Office,28/11/2014,Travel and subsistence UK,Innovation Directorate,HRG UK,240896707,2.57,Not applicable,
Department for Business Innovation and Skills,Intellectual Property Office,28/11/2014,Travel and subsistence UK,Innovation Directorate,HRG UK,426090816,2.57,Not applicable,
Department for Business Innovation and Skills,Intellectual Property Office,28/11/2014,Travel and subsistence UK,Innovation Directorate,HRG UK,240945951,2.57,Not applicable,
Department for Business Innovation and Skills,Intellectual Property Office,28/11/2014,Travel and subsistence UK,Innovation Directorate,HRG UK,426155383,2.57,Not applicable,
Department for Business Innovation and Skills,Intellectual Property Office,28/11/2014,Travel and subsistence UK,Patents Directorate,HRG UK,426106370,2.57,Not applicable,
Department for Business Innovation and Skills,Intellectual Property Office,28/11/2014,Travel and subsistence UK,Trade Marks Directorate,HRG UK,426154824,2.57,Not applicable,
Department for Business Innovation and Skills,Intellectual Property Office,28/11/2014,Travel and subsistence UK,Copyright and IP Enforcement Directorate,HRG UK,426077353,2.57,Not applicable,
Department for Business Innovation and Skills,Intellectual Property Office,28/11/2014,Travel and subsistence UK,Innovation Directorate,HRG UK,426039135,2.57,Not applicable,
Department for Business Innovation and Skills,Intellectual Property Office,28/11/2014,Travel and subsistence UK,Innovation Directorate,HRG UK,426121098,2.57,Not applicable,
Department for Business Innovation and Skills,Intellectual Property Office,28/11/2014,Travel and subsistence UK,Innovation Directorate,HRG UK,426154944,2.57,Not applicable,
Department for Business Innovation and Skills,Intellectual Property Office,28/11/2014,Travel and subsistence UK,Innovation Directorate,HRG UK,426141325,2.57,Not applicable,
Department for Business Innovation and Skills,Intellectual Property Office,28/11/2014,Travel and subsistence UK,Innovation Directorate,HRG UK,426106110,2.57,Not applicable,
Department for Business Innovation and Skills,Intellectual Property Office,28/11/2014,Travel and subsistence UK,Innovation Directorate,HRG UK,240896636,2.57,Not applicable,
Department for Business Innovation and Skills,Intellectual Property Office,28/11/2014,Travel and subsistence UK,Business Support Directorate,HRG UK,240917552,2.57,Not applicable,
Department for Business Innovation and Skills,Intellectual Property Office,28/11/2014,Travel and subsistence UK,Trade Marks Directorate,HRG UK,426012711,2.57,Not applicable,
Department for Business Innovation and Skills,Intellectual Property Office,28/11/2014,Travel and subsistence UK,Trade Marks Directorate,HRG UK,426054424,2.57,Not applicable,
Department for Business Innovation and Skills,Intellectual Property Office,28/11/2014,Travel and subsistence UK,"People, Property and Services Directorate",HRG UK,426174600,2.57,Not applicable,
Department for Business Innovation and Skills,Intellectual Property Office,28/11/2014,Travel and subsistence UK,International Policy Directorate,HRG UK,426207368,2.57,Not applicable,
Department for Business Innovation and Skills,Intellectual Property Office,28/11/2014,Travel and subsistence UK,"People, Property and Services Directorate",HRG UK,426221146,2.57,Not applicable,
Department for Business Innovation and Skills,Intellectual Property Office,28/11/2014,Travel and subsistence UK,Innovation Directorate,HRG UK,426222563,2.57,Not applicable,
Department for Business Innovation and Skills,Intellectual Property Office,28/11/2014,Travel and subsistence UK,Copyright and IP Enforcement Directorate,HRG UK,426141042,2.57,Not applicable,
Department for Business Innovation and Skills,Intellectual Property Office,28/11/2014,Travel and subsistence UK,"People, Property and Services Directorate",HRG UK,240946997,2.57,Not applicable,
Department for Business Innovation and Skills,Intellectual Property Office,28/11/2014,Travel and subsistence UK,International Policy Directorate,HRG UK,426175879,2.57,Not applicable,
Department for Business Innovation and Skills,Intellectual Property Office,28/11/2014,Travel and subsistence UK,Patents Directorate,HRG UK,240996828,2.57,Not applicable,
Department for Business Innovation and Skills,Intellectual Property Office,28/11/2014,Travel and subsistence UK,Innovation Directorate,HRG UK,426054923,2.57,Not applicable,
Department for Business Innovation and Skills,Intellectual Property Office,28/11/2014,Travel and subsistence UK,Innovation Directorate,HRG UK,426120582,2.57,Not applicable,
Department for Business Innovation and Skills,Intellectual Property Office,28/11/2014,Travel and subsistence UK,Innovation Directorate,HRG UK,426121217,2.57,Not applicable,
Department for Business Innovation and Skills,Intellectual Property Office,28/11/2014,Travel and subsistence UK,Innovation Directorate,HRG UK,426141313,2.57,Not applicable,
Department for Business Innovation and Skills,Intellectual Property Office,28/11/2014,Travel and subsistence UK,Innovation Directorate,HRG UK,240896877,2.57,Not applicable,
Department for Business Innovation and Skills,Intellectual Property Office,28/11/2014,Travel and subsistence UK,Innovation Directorate,HRG UK,426140739,2.57,Not applicable,
Department for Business Innovation and Skills,Intellectual Property Office,28/11/2014,Travel and subsistence UK,"People, Property and Services Directorate",HRG UK,426175823,2.57,Not applicable,
Department for Business Innovation and Skills,Intellectual Property Office,28/11/2014,Travel and subsistence UK,Business Support Directorate,HRG UK,426206981,2.57,Not applicable,
Department for Business Innovation and Skills,Intellectual Property Office,28/11/2014,Travel and subsistence UK,Patents Directorate,HRG UK,426055722,2.57,Not applicable,
Department for Business Innovation and Skills,Intellectual Property Office,28/11/2014,Travel and subsistence UK,International Policy Directorate,HRG UK,426207930,2.57,Not applicable,
Department for Business Innovation and Skills,Intellectual Property Office,28/11/2014,Travel and subsistence UK,Innovation Directorate,HRG UK,426222533,2.57,Not applicable,
Department for Business Innovation and Skills,Intellectual Property Office,28/11/2014,Travel and subsistence UK,Copyright and IP Enforcement Directorate,HRG UK,240930988,2.57,Not applicable,
Department for Business Innovation and Skills,Intellectual Property Office,28/11/2014,Travel and subsistence UK,International Policy Directorate,HRG UK,240995733,2.57,Not applicable,
Department for Business Innovation and Skills,Intellectual Property Office,28/11/2014,Travel and subsistence UK,Innovation Directorate,HRG UK,426155373,2.57,Not applicable,
Department for Business Innovation and Skills,Intellectual Property Office,28/11/2014,Travel and subsistence UK,Innovation Directorate,HRG UK,240946962,2.57,Not applicable,
Department for Business Innovation and Skills,Intellectual Property Office,28/11/2014,Travel and subsistence UK,Innovation Directorate,HRG UK,240946956,2.57,Not applicable,
Department for Business Innovation and Skills,Intellectual Property Office,28/11/2014,Travel and subsistence UK,Business Support Directorate,HRG UK,426175875,2.57,Not applicable,
Department for Business Innovation and Skills,Intellectual Property Office,28/11/2014,Travel and subsistence UK,Business Support Directorate,HRG UK,240917342,2.57,Not applicable,
Department for Business Innovation and Skills,Intellectual Property Office,28/11/2014,Travel and subsistence UK,Patents Directorate,HRG UK,240917091,2.57,Not applicable,
Department for Business Innovation and Skills,Intellectual Property Office,28/11/2014,Travel and subsistence UK,International Policy Directorate,HRG UK,426175215,2.57,Not applicable,
Department for Business Innovation and Skills,Intellectual Property Office,28/11/2014,Travel and subsistence UK,International Policy Directorate,HRG UK,240994951,2.57,Not applicable,
Department for Business Innovation and Skills,Intellectual Property Office,28/11/2014,Travel and subsistence UK,International Policy Directorate,HRG UK,426012954,2.57,Not applicable,
Department for Business Innovation and Skills,Intellectual Property Office,28/11/2014,Travel and subsistence UK,Innovation Directorate,HRG UK,426175836,2.57,Not applicable,
Department for Business Innovation and Skills,Intellectual Property Office,28/11/2014,Travel and subsistence UK,Innovation Directorate,HRG UK,426121202,2.57,Not applicable,
Department for Business Innovation and Skills,Intellectual Property Office,28/11/2014,Travel and subsistence UK,Innovation Directorate,HRG UK,426140474,2.57,Not applicable,
Department for Business Innovation and Skills,Intellectual Property Office,28/11/2014,Travel and subsistence UK,Innovation Directorate,HRG UK,426140740,2.57,Not applicable,
Department for Business Innovation and Skills,Intellectual Property Office,28/11/2014,Travel and subsistence UK,Innovation Directorate,HRG UK,426039728,2.57,Not applicable,
Department for Business Innovation and Skills,Intellectual Property Office,28/11/2014,Travel and subsistence UK,Innovation Directorate,HRG UK,426105461,2.57,Not applicable,
Department for Business Innovation and Skills,Intellectual Property Office,28/11/2014,Travel and subsistence UK,Innovation Directorate,HRG UK,240895996,2.57,Not applicable,
Department for Business Innovation and Skills,Intellectual Property Office,28/11/2014,Travel and subsistence UK,"People, Property and Services Directorate",HRG UK,240996868,2.57,Not applicable,
Department for Business Innovation and Skills,Intellectual Property Office,28/11/2014,Travel and subsistence UK,"People, Property and Services Directorate",HRG UK,426175741,2.57,Not applicable,
Department for Business Innovation and Skills,Intellectual Property Office,28/11/2014,Travel and subsistence UK,Business Support Directorate,HRG UK,426190246,2.57,Not applicable,
Department for Business Innovation and Skills,Intellectual Property Office,28/11/2014,Travel and subsistence UK,International Policy Directorate,HRG UK,426077224,2.57,Not applicable,
Department for Business Innovation and Skills,Intellectual Property Office,28/11/2014,Travel and subsistence UK,International Policy Directorate,HRG UK,426077225,2.57,Not applicable,
Department for Business Innovation and Skills,Intellectual Property Office,28/11/2014,Travel and subsistence UK,International Policy Directorate,HRG UK,426140642,2.57,Not applicable,
Department for Business Innovation and Skills,Intellectual Property Office,28/11/2014,Travel and subsistence UK,Innovation Directorate,HRG UK,426175257,2.57,Not applicable,
Department for Business Innovation and Skills,Intellectual Property Office,28/11/2014,Travel and subsistence UK,Copyright and IP Enforcement Directorate,HRG UK,240996737,2.57,Not applicable,
Department for Business Innovation and Skills,Intellectual Property Office,28/11/2014,Travel and subsistence UK,Copyright and IP Enforcement Directorate,HRG UK,240896420,2.57,Not applicable,
Department for Business Innovation and Skills,Intellectual Property Office,28/11/2014,Travel and subsistence UK,Innovation Directorate,HRG UK,240996217,2.57,Not applicable,
Department for Business Innovation and Skills,Intellectual Property Office,28/11/2014,Travel and subsistence UK,Innovation Directorate,HRG UK,426190291,2.57,Not applicable,
Department for Business Innovation and Skills,Intellectual Property Office,28/11/2014,Travel and subsistence UK,International Policy Directorate,HRG UK,426222243,2.57,Not applicable,
Department for Business Innovation and Skills,Intellectual Property Office,28/11/2014,Travel and subsistence UK,Innovation Directorate,HRG UK,240897288,2.57,Not applicable,
Department for Business Innovation and Skills,Intellectual Property Office,28/11/2014,Travel and subsistence UK,Innovation Directorate,HRG UK,426155406,2.57,Not applicable,
Department for Business Innovation and Skills,Intellectual Property Office,28/11/2014,Travel and subsistence UK,Innovation Directorate,HRG UK,426174752,2.57,Not applicable,
Department for Business Innovation and Skills,Intellectual Property Office,28/11/2014,Travel and subsistence UK,Innovation Directorate,HRG UK,240994246,2.57,Not applicable,
Department for Business Innovation and Skills,Intellectual Property Office,28/11/2014,Travel and subsistence UK,Innovation Directorate,HRG UK,426106505,2.57,Not applicable,
Department for Business Innovation and Skills,Intellectual Property Office,28/11/2014,Travel and subsistence UK,"People, Property and Services Directorate",HRG UK,426175736,2.57,Not applicable,
Department for Business Innovation and Skills,Intellectual Property Office,28/11/2014,Travel and subsistence UK,Patents Directorate,HRG UK,426055706,2.57,Not applicable,
Department for Business Innovation and Skills,Intellectual Property Office,28/11/2014,Travel and subsistence UK,Patents Directorate,HRG UK,426039973,2.57,Not applicable,
Department for Business Innovation and Skills,Intellectual Property Office,28/11/2014,Travel and subsistence UK,International Policy Directorate,HRG UK,426207981,2.57,Not applicable,
Department for Business Innovation and Skills,Intellectual Property Office,28/11/2014,Travel and subsistence UK,Innovation Directorate,HRG UK,426039658,2.57,Not applicable,
Department for Business Innovation and Skills,Intellectual Property Office,28/11/2014,Travel and subsistence UK,Innovation Directorate,HRG UK,240916453,2.57,Not applicable,
Department for Business Innovation and Skills,Intellectual Property Office,28/11/2014,Travel and subsistence UK,International Policy Directorate,HRG UK,240996512,2.57,Not applicable,
Department for Business Innovation and Skills,Intellectual Property Office,28/11/2014,Travel and subsistence UK,Innovation Directorate,HRG UK,426155003,2.57,Not applicable,
Department for Business Innovation and Skills,Intellectual Property Office,28/11/2014,Travel and subsistence UK,Innovation Directorate,HRG UK,426155350,2.57,Not applicable,
Department for Business Innovation and Skills,Intellectual Property Office,28/11/2014,Travel and subsistence UK,Innovation Directorate,HRG UK,426120523,2.57,Not applicable,
Department for Business Innovation and Skills,Intellectual Property Office,28/11/2014,Travel and subsistence UK,Innovation Directorate,HRG UK,240945932,2.57,Not applicable,
Department for Business Innovation and Skills,Intellectual Property Office,28/11/2014,Travel and subsistence UK,Innovation Directorate,HRG UK,426155105,2.57,Not applicable,
Department for Business Innovation and Skills,Intellectual Property Office,28/11/2014,Travel and subsistence UK,Innovation Directorate,HRG UK,426054247,2.57,Not applicable,
Department for Business Innovation and Skills,Intellectual Property Office,28/11/2014,Travel and subsistence UK,Innovation Directorate,HRG UK,426155413,2.57,Not applicable,
Department for Business Innovation and Skills,Intellectual Property Office,28/11/2014,Travel and subsistence UK,Business Support Directorate,HRG UK,426154487,2.57,Not applicable,
Department for Business Innovation and Skills,Intellectual Property Office,28/11/2014,Travel and subsistence UK,Patents Directorate,HRG UK,426055695,2.57,Not applicable,
Department for Business Innovation and Skills,Intellectual Property Office,28/11/2014,Travel and subsistence UK,Trade Marks Directorate,HRG UK,426055397,2.57,Not applicable,
Department for Business Innovation and Skills,Intellectual Property Office,28/11/2014,Travel and subsistence UK,International Policy Directorate,HRG UK,426077864,2.57,Not applicable,
Department for Business Innovation and Skills,Intellectual Property Office,28/11/2014,Travel and subsistence UK,Copyright and IP Enforcement Directorate,HRG UK,426206865,2.57,Not applicable,
Department for Business Innovation and Skills,Intellectual Property Office,28/11/2014,Travel and subsistence UK,Copyright and IP Enforcement Directorate,HRG UK,240996772,2.57,Not applicable,
Department for Business Innovation and Skills,Intellectual Property Office,28/11/2014,Travel and subsistence UK,Copyright and IP Enforcement Directorate,HRG UK,240994074,2.57,Not applicable,
Department for Business Innovation and Skills,Intellectual Property Office,28/11/2014,Travel and subsistence UK,Copyright and IP Enforcement Directorate,HRG UK,240916419,2.57,Not applicable,
Department for Business Innovation and Skills,Intellectual Property Office,28/11/2014,Travel and subsistence UK,Patents Directorate,HRG UK,426038929,2.57,Not applicable,
Department for Business Innovation and Skills,Intellectual Property Office,28/11/2014,Travel and subsistence UK,Innovation Directorate,HRG UK,426039637,2.57,Not applicable,
Department for Business Innovation and Skills,Intellectual Property Office,28/11/2014,Travel and subsistence UK,International Policy Directorate,HRG UK,240897476,2.57,Not applicable,
Department for Business Innovation and Skills,Intellectual Property Office,28/11/2014,Travel and subsistence UK,International Policy Directorate,HRG UK,426242291,2.57,Not applicable,
Department for Business Innovation and Skills,Intellectual Property Office,28/11/2014,Travel and subsistence UK,Patents Directorate,HRG UK,240994124,2.57,Not applicable,
Department for Business Innovation and Skills,Intellectual Property Office,28/11/2014,Travel and subsistence UK,Patents Directorate,HRG UK,240996807,2.57,Not applicable,
Department for Business Innovation and Skills,Intellectual Property Office,28/11/2014,Travel and subsistence UK,Patents Directorate,HRG UK,240996797,2.57,Not applicable,
Department for Business Innovation and Skills,Intellectual Property Office,28/11/2014,Travel and subsistence UK,Innovation Directorate,HRG UK,426155298,2.57,Not applicable,
Department for Business Innovation and Skills,Intellectual Property Office,28/11/2014,Travel and subsistence UK,Innovation Directorate,HRG UK,426155400,2.57,Not applicable,
Department for Business Innovation and Skills,Intellectual Property Office,28/11/2014,Travel and subsistence UK,Innovation Directorate,HRG UK,426155313,2.57,Not applicable,
Department for Business Innovation and Skills,Intellectual Property Office,28/11/2014,Travel and subsistence UK,Innovation Directorate,HRG UK,240896854,2.57,Not applicable,
Department for Business Innovation and Skills,Intellectual Property Office,28/11/2014,Travel and subsistence UK,Innovation Directorate,HRG UK,426025783,2.57,Not applicable,
Department for Business Innovation and Skills,Intellectual Property Office,28/11/2014,Travel and subsistence UK,Innovation Directorate,HRG UK,426155086,2.57,Not applicable,
Department for Business Innovation and Skills,Intellectual Property Office,28/11/2014,Travel and subsistence UK,Innovation Directorate,HRG UK,240946943,2.57,Not applicable,
Department for Business Innovation and Skills,Intellectual Property Office,28/11/2014,Travel and subsistence UK,International Policy Directorate,HRG UK,426140571,4.11,Not applicable,
Department for Business Innovation and Skills,Intellectual Property Office,28/11/2014,Travel and subsistence UK,Innovation Directorate,HRG UK,426188431,4.11,Not applicable,
Department for Business Innovation and Skills,Intellectual Property Office,28/11/2014,Travel and subsistence UK,Copyright and IP Enforcement Directorate,HRG UK,426221321,4.11,Not applicable,
Department for Business Innovation and Skills,Intellectual Property Office,28/11/2014,Travel and subsistence UK,International Policy Directorate,HRG UK,426206817,4.11,Not applicable,
Department for Business Innovation and Skills,Intellectual Property Office,05/11/2014,Travel and subsistence UK,Business Support Directorate,Personal expenses name witheld,ER126023,4.20,Not applicable,
Department for Business Innovation and Skills,Intellectual Property Office,17/11/2014,Travel and subsistence UK,Patents Directorate,Personal expenses name witheld,ER126424,4.25,Not applicable,
Department for Business Innovation and Skills,Intellectual Property Office,20/11/2014,Travel and subsistence UK,Patents Directorate,Personal expenses name witheld,ER126689,4.25,Not applicable,
Department for Business Innovation and Skills,Intellectual Property Office,20/11/2014,Travel and subsistence UK,Copyright and IP Enforcement Directorate,Personal expenses name witheld,ER126788,4.40,Not applicable,
Department for Business Innovation and Skills,Intellectual Property Office,28/11/2014,Travel and subsistence UK,Business Support Directorate,Personal expenses name witheld,ER127037,5.05,Not applicable,
Department for Business Innovation and Skills,Intellectual Property Office,28/11/2014,Travel and subsistence UK,Business Support Directorate,HRG UK,240897448,5.14,Not applicable,
Department for Business Innovation and Skills,Intellectual Property Office,28/11/2014,Travel and subsistence UK,Finance Directorate,HRG UK,426221199,5.14,Not applicable,
Department for Business Innovation and Skills,Intellectual Property Office,28/11/2014,Travel and subsistence UK,Trade Marks Directorate,HRG UK,426054419,5.14,Not applicable,
Department for Business Innovation and Skills,Intellectual Property Office,28/11/2014,Travel and subsistence UK,Patents Directorate,HRG UK,426206946,5.14,Not applicable,
Department for Business Innovation and Skills,Intellectual Property Office,28/11/2014,Travel and subsistence UK,Trade Marks Directorate,HRG UK,426054415,5.14,Not applicable,
Department for Business Innovation and Skills,Intellectual Property Office,28/11/2014,Travel and subsistence UK,Copyright and IP Enforcement Directorate,HRG UK,426105508,5.14,Not applicable,
Department for Business Innovation and Skills,Intellectual Property Office,28/11/2014,Travel and subsistence UK,Innovation Directorate,HRG UK,426121173,5.14,Not applicable,
Department for Business Innovation and Skills,Intellectual Property Office,28/11/2014,Travel and subsistence UK,Trade Marks Directorate,HRG UK,426039813,5.14,Not applicable,
Department for Business Innovation and Skills,Intellectual Property Office,28/11/2014,Travel and subsistence UK,Trade Marks Directorate,HRG UK,426039737,5.14,Not applicable,
Department for Business Innovation and Skills,Intellectual Property Office,28/11/2014,Travel and subsistence UK,Trade Marks Directorate,HRG UK,240995621,5.14,Not applicable,
Department for Business Innovation and Skills,Intellectual Property Office,28/11/2014,Travel and subsistence UK,Copyright and IP Enforcement Directorate,HRG UK,426240986,5.14,Not applicable,
Department for Business Innovation and Skills,Intellectual Property Office,28/11/2014,Travel and subsistence UK,Innovation Directorate,HRG UK,426120012,5.14,Not applicable,
Department for Business Innovation and Skills,Intellectual Property Office,28/11/2014,Travel and subsistence UK,Innovation Directorate,HRG UK,426154697,5.14,Not applicable,
Department for Business Innovation and Skills,Intellectual Property Office,28/11/2014,Travel and subsistence UK,Business Support Directorate,HRG UK,426176167,5.14,Not applicable,
Department for Business Innovation and Skills,Intellectual Property Office,28/11/2014,Travel and subsistence UK,Central Support,HRG UK,240896291,5.14,Not applicable,
Department for Business Innovation and Skills,Intellectual Property Office,28/11/2014,Travel and subsistence UK,Trade Marks Directorate,HRG UK,240995619,5.14,Not applicable,
Department for Business Innovation and Skills,Intellectual Property Office,28/11/2014,Travel and subsistence UK,Copyright and IP Enforcement Directorate,HRG UK,240931451,5.14,Not applicable,
Department for Business Innovation and Skills,Intellectual Property Office,28/11/2014,Travel and subsistence UK,Copyright and IP Enforcement Directorate,HRG UK,240931433,5.14,Not applicable,
Department for Business Innovation and Skills,Intellectual Property Office,28/11/2014,Travel and subsistence UK,Innovation Directorate,HRG UK,426120626,5.14,Not applicable,
Department for Business Innovation and Skills,Intellectual Property Office,28/11/2014,Travel and subsistence UK,Trade Marks Directorate,HRG UK,426055444,5.65,Not applicable,
Department for Business Innovation and Skills,Intellectual Property Office,28/11/2014,Travel and subsistence UK,Trade Marks Directorate,HRG UK,426012761,5.65,Not applicable,
Department for Business Innovation and Skills,Intellectual Property Office,28/11/2014,Travel and subsistence UK,Trade Marks Directorate,HRG UK,240896484,5.65,Not applicable,
Department for Business Innovation and Skills,Intellectual Property Office,28/11/2014,Travel and subsistence UK,Patents Directorate,HRG UK,240917697,5.65,Not applicable,
Department for Business Innovation and Skills,Intellectual Property Office,28/11/2014,Travel and subsistence UK,Copyright and IP Enforcement Directorate,HRG UK,426120472,5.65,Not applicable,
Department for Business Innovation and Skills,Intellectual Property Office,28/11/2014,Travel and subsistence UK,Innovation Directorate,HRG UK,240897326,5.65,Not applicable,
Department for Business Innovation and Skills,Intellectual Property Office,28/11/2014,Travel and subsistence UK,Trade Marks Directorate,HRG UK,240896467,5.65,Not applicable,
Department for Business Innovation and Skills,Intellectual Property Office,28/11/2014,Travel and subsistence UK,Trade Marks Directorate,HRG UK,426012762,5.65,Not applicable,
Department for Business Innovation and Skills,Intellectual Property Office,28/11/2014,Travel and subsistence UK,Copyright and IP Enforcement Directorate,HRG UK,426120473,5.65,Not applicable,
Department for Business Innovation and Skills,Intellectual Property Office,28/11/2014,Travel and subsistence UK,Patents Directorate,HRG UK,240946727,5.65,Not applicable,
Department for Business Innovation and Skills,Intellectual Property Office,28/11/2014,Travel and subsistence UK,Trade Marks Directorate,HRG UK,240896466,5.65,Not applicable,
Department for Business Innovation and Skills,Intellectual Property Office,28/11/2014,Travel and subsistence UK,International Policy Directorate,HRG UK,426025723,5.65,Not applicable,
Department for Business Innovation and Skills,Intellectual Property Office,28/11/2014,Travel and subsistence UK,Innovation Directorate,HRG UK,426091491,6.68,Not applicable,
Department for Business Innovation and Skills,Intellectual Property Office,28/11/2014,Travel and subsistence UK,Innovation Directorate,HRG UK,426091478,6.68,Not applicable,
Department for Business Innovation and Skills,Intellectual Property Office,28/11/2014,Travel and subsistence UK,Innovation Directorate,HRG UK,426091474,6.68,Not applicable,
Department for Business Innovation and Skills,Intellectual Property Office,28/11/2014,Travel and subsistence UK,Innovation Directorate,HRG UK,426091467,6.68,Not applicable,
Department for Business Innovation and Skills,Intellectual Property Office,28/11/2014,Travel and subsistence UK,Innovation Directorate,HRG UK,426091488,6.68,Not applicable,
Department for Business Innovation and Skills,Intellectual Property Office,28/11/2014,Travel and subsistence UK,Innovation Directorate,HRG UK,426091480,6.68,Not applicable,
Department for Business Innovation and Skills,Intellectual Property Office,28/11/2014,Travel and subsistence UK,Innovation Directorate,HRG UK,426091492,6.68,Not applicable,
Department for Business Innovation and Skills,Intellectual Property Office,28/11/2014,Travel and subsistence UK,Innovation Directorate,HRG UK,426091476,6.68,Not applicable,
Department for Business Innovation and Skills,Intellectual Property Office,28/11/2014,Travel and subsistence UK,Innovation Directorate,HRG UK,426091469,6.68,Not applicable,
Department for Business Innovation and Skills,Intellectual Property Office,28/11/2014,Travel and subsistence UK,Innovation Directorate,HRG UK,426091483,6.68,Not applicable,
Department for Business Innovation and Skills,Intellectual Property Office,28/11/2014,Travel and subsistence UK,Innovation Directorate,HRG UK,426091472,6.68,Not applicable,
Department for Business Innovation and Skills,Intellectual Property Office,12/11/2014,Travel and subsistence UK,Innovation Directorate,Personal expenses name witheld,ER126343,7.00,Not applicable,
Department for Business Innovation and Skills,Intellectual Property Office,11/11/2014,Travel and subsistence UK,Business Support Directorate,Leasedrive Velo Rental Management Ltd,RHI01245434,7.50,Not applicable,
Department for Business Innovation and Skills,Intellectual Property Office,05/11/2014,Travel and subsistence UK,Patents Directorate,Personal expenses name witheld,ER126038,7.60,Not applicable,
Department for Business Innovation and Skills,Intellectual Property Office,05/11/2014,Travel and subsistence UK,Patents Directorate,Personal expenses name witheld,ER125978,7.70,Not applicable,
Department for Business Innovation and Skills,Intellectual Property Office,17/11/2014,Travel and subsistence UK,Patents Directorate,Veezu Ltd T/A Dragon Taxis (Newport),2596,7.80,Not applicable,
Department for Business Innovation and Skills,Intellectual Property Office,17/11/2014,Travel and subsistence UK,Innovation Directorate,Veezu Ltd T/A Dragon Taxis (Newport),2596,7.80,Not applicable,
Department for Business Innovation and Skills,Intellectual Property Office,17/11/2014,Travel and subsistence UK,Patents Directorate,Veezu Ltd T/A Dragon Taxis (Newport),2596,7.80,Not applicable,
Department for Business Innovation and Skills,Intellectual Property Office,06/11/2014,Travel and subsistence UK,International Policy Directorate,Personal expenses name witheld,ER126021,8.05,Not applicable,
Department for Business Innovation and Skills,Intellectual Property Office,12/11/2014,Travel and subsistence UK,"People, Property and Services Directorate",Personal expenses name witheld,ER126386,8.10,Not applicable,
Department for Business Innovation and Skills,Intellectual Property Office,06/11/2014,Travel and subsistence UK,"People, Property and Services Directorate",Personal expenses name witheld,ER126138,8.10,Not applicable,
Department for Business Innovation and Skills,Intellectual Property Office,28/11/2014,Travel and subsistence UK,Innovation Directorate,HRG UK,426026459,8.22,Not applicable,
Department for Business Innovation and Skills,Intellectual Property Office,28/11/2014,Travel and subsistence UK,Business Support Directorate,HRG UK,240882147,8.22,Not applicable,
Department for Business Innovation and Skills,Intellectual Property Office,28/11/2014,Travel and subsistence UK,Copyright and IP Enforcement Directorate,HRG UK,426026457,8.22,Not applicable,
Department for Business Innovation and Skills,Intellectual Property Office,28/11/2014,Travel and subsistence UK,International Policy Directorate,HRG UK,240947297,8.22,Not applicable,
Department for Business Innovation and Skills,Intellectual Property Office,28/11/2014,Travel and subsistence UK,Trade Marks Directorate,HRG UK,426054433,8.22,Not applicable,
Department for Business Innovation and Skills,Intellectual Property Office,28/11/2014,Travel and subsistence UK,Trade Marks Directorate,HRG UK,426077252,8.22,Not applicable,
Department for Business Innovation and Skills,Intellectual Property Office,28/11/2014,Travel and subsistence UK,Copyright and IP Enforcement Directorate,HRG UK,240947298,8.22,Not applicable,
Department for Business Innovation and Skills,Intellectual Property Office,28/11/2014,Travel and subsistence UK,Innovation Directorate,HRG UK,426141178,8.22,Not applicable,
Department for Business Innovation and Skills,Intellectual Property Office,28/11/2014,Travel and subsistence UK,Copyright and IP Enforcement Directorate,HRG UK,426026458,8.22,Not applicable,
Department for Business Innovation and Skills,Intellectual Property Office,28/11/2014,Travel and subsistence UK,Trade Marks Directorate,HRG UK,426040005,8.22,Not applicable,
Department for Business Innovation and Skills,Intellectual Property Office,28/11/2014,Travel and subsistence UK,Innovation Directorate,HRG UK,240910549,8.37,Not applicable,
Department for Business Innovation and Skills,Intellectual Property Office,03/11/2014,Travel and subsistence UK,Central Support,Personal expenses name witheld,ER125657,8.40,Not applicable,
Department for Business Innovation and Skills,Intellectual Property Office,12/11/2014,Travel and subsistence UK,Innovation Directorate,Personal expenses name witheld,ER126365,8.75,Not applicable,
Department for Business Innovation and Skills,Intellectual Property Office,03/11/2014,Travel and subsistence UK,Copyright and IP Enforcement Directorate,Personal expenses name witheld,ER125779,8.90,Not applicable,
Department for Business Innovation and Skills,Intellectual Property Office,10/11/2014,Travel and subsistence UK,International Policy Directorate,Personal expenses name witheld,ER126206,9.00,Not applicable,
Department for Business Innovation and Skills,Intellectual Property Office,28/11/2014,Travel and subsistence UK,Business Support Directorate,Personal expenses name witheld,ER126662,9.00,Not applicable,
Department for Business Innovation and Skills,Intellectual Property Office,21/11/2014,Travel and subsistence UK,Patents Directorate,Personal expenses name witheld,ER126791,9.00,Not applicable,
Department for Business Innovation and Skills,Intellectual Property Office,04/11/2014,Travel and subsistence UK,Copyright and IP Enforcement Directorate,Leasedrive Velo Rental Management Ltd,RHI01186490,9.05,Not applicable,
Department for Business Innovation and Skills,Intellectual Property Office,17/11/2014,Travel and subsistence UK,Patents Directorate,Personal expenses name witheld,ER126545,9.30,Not applicable,
Department for Business Innovation and Skills,Intellectual Property Office,03/11/2014,Travel and subsistence UK,Copyright and IP Enforcement Directorate,Personal expenses name witheld,ER125778,9.30,Not applicable,
Department for Business Innovation and Skills,Intellectual Property Office,21/11/2014,Travel and subsistence UK,"People, Property and Services Directorate",Personal expenses name witheld,ER126784,9.30,Not applicable,
Department for Business Innovation and Skills,Intellectual Property Office,24/11/2014,Travel and subsistence UK,Patents Directorate,Personal expenses name witheld,ER126877,9.30,Not applicable,
Department for Business Innovation and Skills,Intellectual Property Office,28/11/2014,Travel and subsistence UK,Business Support Directorate,Personal expenses name witheld,ER126876,9.30,Not applicable,
Department for Business Innovation and Skills,Intellectual Property Office,03/11/2014,Travel and subsistence UK,Business Support Directorate,Personal expenses name witheld,ER125878,9.30,Not applicable,
Department for Business Innovation and Skills,Intellectual Property Office,20/11/2014,Travel and subsistence UK,Patents Directorate,Personal expenses name witheld,ER126671,9.30,Not applicable,
Department for Business Innovation and Skills,Intellectual Property Office,21/11/2014,Travel and subsistence UK,Patents Directorate,Personal expenses name witheld,ER126794,9.30,Not applicable,
Department for Business Innovation and Skills,Intellectual Property Office,20/11/2014,Travel and subsistence UK,Patents Directorate,Personal expenses name witheld,ER126659,9.30,Not applicable,
Department for Business Innovation and Skills,Intellectual Property Office,21/11/2014,Travel and subsistence UK,Copyright and IP Enforcement Directorate,Personal expenses name witheld,ER126790,9.30,Not applicable,
Department for Business Innovation and Skills,Intellectual Property Office,17/11/2014,Travel and subsistence UK,Patents Directorate,Personal expenses name witheld,ER125998,9.30,Not applicable,
Department for Business Innovation and Skills,Intellectual Property Office,11/11/2014,Travel and subsistence UK,International Policy Directorate,Personal expenses name witheld,ER126120,9.30,Not applicable,
Department for Business Innovation and Skills,Intellectual Property Office,21/11/2014,Travel and subsistence UK,Patents Directorate,Personal expenses name witheld,ER126793,9.30,Not applicable,
Department for Business Innovation and Skills,Intellectual Property Office,03/11/2014,Travel and subsistence UK,International Policy Directorate,Personal expenses name witheld,ER125579,9.30,Not applicable,
Department for Business Innovation and Skills,Intellectual Property Office,21/11/2014,Travel and subsistence UK,Patents Directorate,Personal expenses name witheld,ER126785,9.30,Not applicable,
Department for Business Innovation and Skills,Intellectual Property Office,17/11/2014,Travel and subsistence UK,International Policy Directorate,Personal expenses name witheld,ER126525,9.30,Not applicable,
Department for Business Innovation and Skills,Intellectual Property Office,17/11/2014,Travel and subsistence UK,"People, Property and Services Directorate",Personal expenses name witheld,ER126463,9.30,Not applicable,
Department for Business Innovation and Skills,Intellectual Property Office,05/11/2014,Travel and subsistence UK,Patents Directorate,Personal expenses name witheld,ER126019,9.45,Not applicable,
Department for Business Innovation and Skills,Intellectual Property Office,28/11/2014,Travel and subsistence UK,Copyright and IP Enforcement Directorate,HRG UK,240969568,9.46,Not applicable,
Department for Business Innovation and Skills,Intellectual Property Office,28/11/2014,Travel and subsistence UK,Copyright and IP Enforcement Directorate,HRG UK,240979478,9.46,Not applicable,
Department for Business Innovation and Skills,Intellectual Property Office,28/11/2014,Travel and subsistence UK,"People, Property and Services Directorate",HRG UK,426151599,9.72,Not applicable,
Department for Business Innovation and Skills,Intellectual Property Office,28/11/2014,Travel and subsistence UK,Finance Directorate,HRG UK,426014859,9.72,Not applicable,
Department for Business Innovation and Skills,Intellectual Property Office,28/11/2014,Travel and subsistence UK,Patents Directorate,HRG UK,426099629,9.72,Not applicable,
Department for Business Innovation and Skills,Intellectual Property Office,28/11/2014,Travel and subsistence UK,Business Support Directorate,HRG UK,426146274,9.72,Not applicable,
Department for Business Innovation and Skills,Intellectual Property Office,28/11/2014,Travel and subsistence UK,Business Support Directorate,HRG UK,426181644,9.72,Not applicable,
Department for Business Innovation and Skills,Intellectual Property Office,28/11/2014,Travel and subsistence UK,Patents Directorate,HRG UK,426072353,9.72,Not applicable,
Department for Business Innovation and Skills,Intellectual Property Office,28/11/2014,Travel and subsistence UK,Copyright and IP Enforcement Directorate,HRG UK,240933070,9.72,Not applicable,
Department for Business Innovation and Skills,Intellectual Property Office,28/11/2014,Travel and subsistence UK,Trade Marks Directorate,HRG UK,426105176,9.72,Not applicable,
Department for Business Innovation and Skills,Intellectual Property Office,28/11/2014,Travel and subsistence UK,Business Support Directorate,HRG UK,426029358,9.72,Not applicable,
Department for Business Innovation and Skills,Intellectual Property Office,28/11/2014,Travel and subsistence UK,Patents Directorate,HRG UK,240955180,9.72,Not applicable,
Department for Business Innovation and Skills,Intellectual Property Office,28/11/2014,Travel and subsistence UK,Copyright and IP Enforcement Directorate,HRG UK,426031856,9.72,Not applicable,
Department for Business Innovation and Skills,Intellectual Property Office,28/11/2014,Travel and subsistence UK,International Policy Directorate,HRG UK,240966719,9.72,Not applicable,
Department for Business Innovation and Skills,Intellectual Property Office,21/11/2014,Travel and subsistence UK,Innovation Directorate,Personal expenses name witheld,ER126800,9.72,Not applicable,
Department for Business Innovation and Skills,Intellectual Property Office,28/11/2014,Travel and subsistence UK,Copyright and IP Enforcement Directorate,HRG UK,426211734,9.72,Not applicable,
Department for Business Innovation and Skills,Intellectual Property Office,28/11/2014,Travel and subsistence UK,"People, Property and Services Directorate",HRG UK,240955274,9.72,Not applicable,
Department for Business Innovation and Skills,Intellectual Property Office,28/11/2014,Travel and subsistence UK,Business Support Directorate,HRG UK,240914526,9.72,Not applicable,
Department for Business Innovation and Skills,Intellectual Property Office,28/11/2014,Travel and subsistence UK,International Policy Directorate,HRG UK,240908516,9.72,Not applicable,
Department for Business Innovation and Skills,Intellectual Property Office,28/11/2014,Travel and subsistence UK,International Policy Directorate,HRG UK,426126212,9.72,Not applicable,
Department for Business Innovation and Skills,Intellectual Property Office,28/11/2014,Travel and subsistence UK,"People, Property and Services Directorate",HRG UK,240923735,9.72,Not applicable,
Department for Business Innovation and Skills,Intellectual Property Office,28/11/2014,Travel and subsistence UK,Trade Marks Directorate,HRG UK,426015778,9.72,Not applicable,
Department for Business Innovation and Skills,Intellectual Property Office,28/11/2014,Travel and subsistence UK,Business Support Directorate,HRG UK,426029288,9.72,Not applicable,
Department for Business Innovation and Skills,Intellectual Property Office,28/11/2014,Travel and subsistence UK,Business Support Directorate,HRG UK,240993597,9.72,Not applicable,
Department for Business Innovation and Skills,Intellectual Property Office,28/11/2014,Travel and subsistence UK,Finance Directorate,Personal expenses name witheld,ER126977,9.90,Not applicable,
Department for Business Innovation and Skills,Intellectual Property Office,05/11/2014,Travel and subsistence UK,"People, Property and Services Directorate",Personal expenses name witheld,ER126063,10.60,Not applicable,
Department for Business Innovation and Skills,Intellectual Property Office,14/11/2014,Travel and subsistence UK,"People, Property and Services Directorate",Personal expenses name witheld,ER126523,10.80,Not applicable,
Department for Business Innovation and Skills,Intellectual Property Office,14/11/2014,Travel and subsistence UK,Trade Marks Directorate,Personal expenses name witheld,ER126546,11.05,Not applicable,
Department for Business Innovation and Skills,Intellectual Property Office,04/11/2014,Travel and subsistence UK,Patents Directorate,Personal expenses name witheld,ER125898,11.05,Not applicable,
Department for Business Innovation and Skills,Intellectual Property Office,28/11/2014,Travel and subsistence UK,Trade Marks Directorate,Personal expenses name witheld,ER127138,11.45,Not applicable,
Department for Business Innovation and Skills,Intellectual Property Office,11/11/2014,Travel and subsistence UK,Innovation Directorate,Personal expenses name witheld,ER126307,11.90,Not applicable,
Department for Business Innovation and Skills,Intellectual Property Office,28/11/2014,Travel and subsistence UK,"People, Property and Services Directorate",Personal expenses name witheld,ER127218,11.95,Not applicable,
Department for Business Innovation and Skills,Intellectual Property Office,03/11/2014,Travel and subsistence UK,Patents Directorate,Personal expenses name witheld,ER125798,11.95,Not applicable,
Department for Business Innovation and Skills,Intellectual Property Office,10/11/2014,Travel and subsistence UK,Patents Directorate,Personal expenses name witheld,ER125517,12.40,Not applicable,
Department for Business Innovation and Skills,Intellectual Property Office,28/11/2014,Travel and subsistence UK,Finance Directorate,HRG UK,240951752,12.46,Not applicable,
Department for Business Innovation and Skills,Intellectual Property Office,14/11/2014,Travel and subsistence UK,"People, Property and Services Directorate",Personal expenses name witheld,ER126524,12.50,Not applicable,
Department for Business Innovation and Skills,Intellectual Property Office,28/11/2014,Travel and subsistence UK,Business Support Directorate,HRG UK,240993008,12.55,Not applicable,
Department for Business Innovation and Skills,Intellectual Property Office,10/11/2014,Travel and subsistence UK,Business Support Directorate,Personal expenses name witheld,ER126289,12.60,Not applicable,
Department for Business Innovation and Skills,Intellectual Property Office,25/11/2014,Travel and subsistence UK,Business Support Directorate,Personal expenses name witheld,ER126903,12.60,Not applicable,
Department for Business Innovation and Skills,Intellectual Property Office,20/11/2014,Travel and subsistence UK,Patents Directorate,Leasedrive Velo Rental Management Ltd,RHI01276004,12.84,Not applicable,
Department for Business Innovation and Skills,Intellectual Property Office,06/11/2014,Travel and subsistence UK,"People, Property and Services Directorate",Personal expenses name witheld,ER126139,12.95,Not applicable,
Department for Business Innovation and Skills,Intellectual Property Office,13/11/2014,Travel and subsistence UK,International Policy Directorate,Personal expenses name witheld,ER126309,13.20,Not applicable,
Department for Business Innovation and Skills,Intellectual Property Office,17/11/2014,Travel and subsistence UK,Copyright and IP Enforcement Directorate,Personal expenses name witheld,ER126583,13.35,Not applicable,
Department for Business Innovation and Skills,Intellectual Property Office,03/11/2014,Travel and subsistence UK,Innovation Directorate,Personal expenses name witheld,ER125781,13.39,Not applicable,
Department for Business Innovation and Skills,Intellectual Property Office,26/11/2014,Travel and subsistence UK,Patents Directorate,Personal expenses name witheld,ER126898,13.60,Not applicable,
Department for Business Innovation and Skills,Intellectual Property Office,18/11/2014,Travel and subsistence UK,Innovation Directorate,Personal expenses name witheld,ER126655,14.00,Not applicable,
Department for Business Innovation and Skills,Intellectual Property Office,12/11/2014,Travel and subsistence UK,"People, Property and Services Directorate",Personal expenses name witheld,ER126344,14.10,Not applicable,
Department for Business Innovation and Skills,Intellectual Property Office,13/11/2014,Travel and subsistence UK,Patents Directorate,Personal expenses name witheld,ER126529,14.20,Not applicable,
Department for Business Innovation and Skills,Intellectual Property Office,21/11/2014,Travel and subsistence UK,Patents Directorate,Personal expenses name witheld,ER126792,14.25,Not applicable,
Department for Business Innovation and Skills,Intellectual Property Office,28/11/2014,Travel and subsistence UK,Central Support,HRG UK,426176554,14.35,Not applicable,
Department for Business Innovation and Skills,Intellectual Property Office,04/11/2014,Travel and subsistence UK,Patents Directorate,Personal expenses name witheld,ER125900,14.85,Not applicable,
Department for Business Innovation and Skills,Intellectual Property Office,13/11/2014,Travel and subsistence UK,Patents Directorate,Personal expenses name witheld,ER126526,15.05,Not applicable,
Department for Business Innovation and Skills,Intellectual Property Office,26/11/2014,Travel and subsistence UK,Trade Marks Directorate,Personal expenses name witheld,ER127018,15.10,Not applicable,
Department for Business Innovation and Skills,Intellectual Property Office,17/11/2014,Travel and subsistence UK,Finance Directorate,Veezu Ltd T/A Dragon Taxis (Newport),2596,15.60,Not applicable,
Department for Business Innovation and Skills,Intellectual Property Office,11/11/2014,Travel and subsistence UK,"People, Property and Services Directorate",Personal expenses name witheld,ER126263,16.00,Not applicable,
Department for Business Innovation and Skills,Intellectual Property Office,07/11/2014,Travel and subsistence UK,Patents Directorate,Personal expenses name witheld,ER126104,16.70,Not applicable,
Department for Business Innovation and Skills,Intellectual Property Office,14/11/2014,Travel and subsistence UK,Innovation Directorate,Personal expenses name witheld,ER126549,16.80,Not applicable,
Department for Business Innovation and Skills,Intellectual Property Office,17/11/2014,Travel and subsistence UK,Innovation Directorate,Veezu Ltd T/A Dragon Taxis (Newport),2596,16.80,Not applicable,
Department for Business Innovation and Skills,Intellectual Property Office,28/11/2014,Travel and subsistence UK,Patents Directorate,HRG UK,426187576,17.15,Not applicable,
Department for Business Innovation and Skills,Intellectual Property Office,28/11/2014,Travel and subsistence UK,Innovation Directorate,HRG UK,426244507,17.16,Not applicable,
Department for Business Innovation and Skills,Intellectual Property Office,28/11/2014,Travel and subsistence UK,Innovation Directorate,HRG UK,240986174,17.16,Not applicable,
Department for Business Innovation and Skills,Intellectual Property Office,20/11/2014,Travel and subsistence UK,"People, Property and Services Directorate",Personal expenses name witheld,ER126745,17.20,Not applicable,
Department for Business Innovation and Skills,Intellectual Property Office,25/11/2014,Travel and subsistence UK,International Policy Directorate,Personal expenses name witheld,ER126878,17.20,Not applicable,
Department for Business Innovation and Skills,Intellectual Property Office,17/11/2014,Travel and subsistence UK,International Policy Directorate,Personal expenses name witheld,ER126229,17.20,Not applicable,
Department for Business Innovation and Skills,Intellectual Property Office,20/11/2014,Travel and subsistence UK,Innovation Directorate,Personal expenses name witheld,ER126766,17.50,Not applicable,
Department for Business Innovation and Skills,Intellectual Property Office,13/11/2014,Travel and subsistence UK,International Policy Directorate,Personal expenses name witheld,ER126025,17.70,Not applicable,
Department for Business Innovation and Skills,Intellectual Property Office,28/11/2014,Travel and subsistence UK,International Policy Directorate,HRG UK,240898965,17.75,Not applicable,
Department for Business Innovation and Skills,Intellectual Property Office,28/11/2014,Travel and subsistence UK,International Policy Directorate,HRG UK,426206304,17.75,Not applicable,
Department for Business Innovation and Skills,Intellectual Property Office,28/11/2014,Travel and subsistence UK,Copyright and IP Enforcement Directorate,HRG UK,426198564,17.94,Not applicable,
Department for Business Innovation and Skills,Intellectual Property Office,27/11/2014,Travel and subsistence UK,Patents Directorate,Personal expenses name witheld,ER127119,18.30,Not applicable,
Department for Business Innovation and Skills,Intellectual Property Office,11/11/2014,Travel and subsistence UK,"People, Property and Services Directorate",Personal expenses name witheld,ER126325,18.30,Not applicable,
Department for Business Innovation and Skills,Intellectual Property Office,14/11/2014,Travel and subsistence UK,Copyright and IP Enforcement Directorate,Personal expenses name witheld,ER126371,18.55,Not applicable,
Department for Business Innovation and Skills,Intellectual Property Office,07/11/2014,Travel and subsistence UK,Trade Marks Directorate,Personal expenses name witheld,ER126142,18.60,Not applicable,
Department for Business Innovation and Skills,Intellectual Property Office,20/11/2014,Travel and subsistence UK,Finance Directorate,Personal expenses name witheld,ER126423,18.70,Not applicable,
Department for Business Innovation and Skills,Intellectual Property Office,03/11/2014,Travel and subsistence UK,Copyright and IP Enforcement Directorate,Personal expenses name witheld,ER125477,19.30,Not applicable,
Department for Business Innovation and Skills,Intellectual Property Office,18/11/2014,Travel and subsistence UK,Patents Directorate,Personal expenses name witheld,ER126686,19.30,Not applicable,
Department for Business Innovation and Skills,Intellectual Property Office,10/11/2014,Travel and subsistence UK,Trade Marks Directorate,Personal expenses name witheld,ER126225,19.30,Not applicable,
Department for Business Innovation and Skills,Intellectual Property Office,10/11/2014,Travel and subsistence UK,Innovation Directorate,Personal expenses name witheld,ER126227,19.30,Not applicable,
Department for Business Innovation and Skills,Intellectual Property Office,14/11/2014,Travel and subsistence UK,Business Support Directorate,Personal expenses name witheld,ER126403,19.70,Not applicable,
Department for Business Innovation and Skills,Intellectual Property Office,17/11/2014,Travel and subsistence UK,Trade Marks Directorate,Veezu Ltd T/A Dragon Taxis (Newport),2596,19.80,Not applicable,
Department for Business Innovation and Skills,Intellectual Property Office,28/11/2014,Travel and subsistence UK,Innovation Directorate,HRG UK,240929095,19.94,Not applicable,
Department for Business Innovation and Skills,Intellectual Property Office,06/11/2014,Travel and subsistence UK,International Policy Directorate,Personal expenses name witheld,ER126080,20.35,Not applicable,
Department for Business Innovation and Skills,Intellectual Property Office,28/11/2014,Travel and subsistence UK,Patents Directorate,HRG UK,426229417,20.63,Not applicable,
Department for Business Innovation and Skills,Intellectual Property Office,28/11/2014,Travel and subsistence UK,Finance Directorate,HRG UK,426014280,20.73,Not applicable,
Department for Business Innovation and Skills,Intellectual Property Office,28/11/2014,Travel and subsistence UK,International Policy Directorate,HRG UK,240898977,20.73,Not applicable,
Department for Business Innovation and Skills,Intellectual Property Office,24/11/2014,Travel and subsistence UK,Patents Directorate,Personal expenses name witheld,ER126834,21.00,Not applicable,
Department for Business Innovation and Skills,Intellectual Property Office,28/11/2014,Travel and subsistence UK,"People, Property and Services Directorate",HRG UK,426092679,21.03,Not applicable,
Department for Business Innovation and Skills,Intellectual Property Office,28/11/2014,Travel and subsistence UK,"People, Property and Services Directorate",HRG UK,426230632,21.03,Not applicable,
Department for Business Innovation and Skills,Intellectual Property Office,28/11/2014,Travel and subsistence UK,"People, Property and Services Directorate",HRG UK,426229437,21.03,Not applicable,
Department for Business Innovation and Skills,Intellectual Property Office,28/11/2014,Travel and subsistence UK,International Policy Directorate,HRG UK,426181070,21.04,Not applicable,
Department for Business Innovation and Skills,Intellectual Property Office,28/11/2014,Travel and subsistence UK,International Policy Directorate,HRG UK,240910552,21.04,Not applicable,
Department for Business Innovation and Skills,Intellectual Property Office,28/11/2014,Travel and subsistence UK,International Policy Directorate,HRG UK,240963896,21.04,Not applicable,
Department for Business Innovation and Skills,Intellectual Property Office,14/11/2014,Travel and subsistence UK,Business Support Directorate,Personal expenses name witheld,ER124936,21.37,Not applicable,
Department for Business Innovation and Skills,Intellectual Property Office,12/11/2014,Travel and subsistence UK,Copyright and IP Enforcement Directorate,Personal expenses name witheld,ER126364,21.40,Not applicable,
Department for Business Innovation and Skills,Intellectual Property Office,28/11/2014,Travel and subsistence UK,Copyright and IP Enforcement Directorate,HRG UK,426245377,21.53,Not applicable,
Department for Business Innovation and Skills,Intellectual Property Office,28/11/2014,Travel and subsistence UK,International Policy Directorate,HRG UK,240957853,21.65,Not applicable,
Department for Business Innovation and Skills,Intellectual Property Office,28/11/2014,Travel and subsistence UK,International Policy Directorate,HRG UK,240958066,21.65,Not applicable,
Department for Business Innovation and Skills,Intellectual Property Office,21/11/2014,Travel and subsistence UK,Finance Directorate,Personal expenses name witheld,ER126813,22.50,Not applicable,
Department for Business Innovation and Skills,Intellectual Property Office,27/11/2014,Travel and subsistence UK,International Policy Directorate,Personal expenses name witheld,ER127122,22.50,Not applicable,
Department for Business Innovation and Skills,Intellectual Property Office,17/11/2014,Travel and subsistence UK,Copyright and IP Enforcement Directorate,Veezu Ltd T/A Dragon Taxis (Newport),2596,23.40,Not applicable,
Department for Business Innovation and Skills,Intellectual Property Office,17/11/2014,Travel and subsistence UK,Central Support,Veezu Ltd T/A Dragon Taxis (Newport),2596,23.40,Not applicable,
Department for Business Innovation and Skills,Intellectual Property Office,28/11/2014,Travel and subsistence UK,Copyright and IP Enforcement Directorate,HRG UK,426183949,23.93,Not applicable,
Department for Business Innovation and Skills,Intellectual Property Office,03/11/2014,Travel and subsistence UK,Business Support Directorate,Personal expenses name witheld,ER125677,24.00,Not applicable,
Department for Business Innovation and Skills,Intellectual Property Office,11/11/2014,Travel and subsistence UK,Business Support Directorate,Personal expenses name witheld,ER126287,24.00,Not applicable,
Department for Business Innovation and Skills,Intellectual Property Office,24/11/2014,Travel and subsistence UK,Business Support Directorate,Personal expenses name witheld,ER126656,24.00,Not applicable,
Department for Business Innovation and Skills,Intellectual Property Office,28/11/2014,Travel and subsistence UK,Copyright and IP Enforcement Directorate,HRG UK,426229433,24.53,Not applicable,
Department for Business Innovation and Skills,Intellectual Property Office,17/11/2014,Travel and subsistence UK,"People, Property and Services Directorate",Veezu Ltd T/A Dragon Taxis (Newport),2596,24.60,Not applicable,
Department for Business Innovation and Skills,Intellectual Property Office,28/11/2014,Travel and subsistence UK,International Policy Directorate,HRG UK,240963892,24.62,Not applicable,
Department for Business Innovation and Skills,Intellectual Property Office,28/11/2014,Travel and subsistence UK,International Policy Directorate,HRG UK,240965755,24.72,Not applicable,
Department for Business Innovation and Skills,Intellectual Property Office,28/11/2014,Travel and subsistence UK,International Policy Directorate,HRG UK,426193576,24.93,Not applicable,
Department for Business Innovation and Skills,Intellectual Property Office,28/11/2014,Travel and subsistence UK,Copyright and IP Enforcement Directorate,HRG UK,240958305,24.93,Not applicable,
Department for Business Innovation and Skills,Intellectual Property Office,28/11/2014,Travel and subsistence UK,International Policy Directorate,HRG UK,240898978,24.93,Not applicable,
Department for Business Innovation and Skills,Intellectual Property Office,28/11/2014,Travel and subsistence UK,Copyright and IP Enforcement Directorate,HRG UK,240958307,24.93,Not applicable,
Department for Business Innovation and Skills,Intellectual Property Office,21/11/2014,Travel and subsistence UK,Innovation Directorate,Personal expenses name witheld,ER126799,25.45,Not applicable,
Department for Business Innovation and Skills,Intellectual Property Office,28/11/2014,Travel and subsistence UK,Finance Directorate,HRG UK,426158155,26.42,Not applicable,
Department for Business Innovation and Skills,Intellectual Property Office,28/11/2014,Travel and subsistence UK,International Policy Directorate,HRG UK,426204532,26.63,Not applicable,
Department for Business Innovation and Skills,Intellectual Property Office,28/11/2014,Travel and subsistence UK,Copyright and IP Enforcement Directorate,HRG UK,426229420,26.63,Not applicable,
Department for Business Innovation and Skills,Intellectual Property Office,03/11/2014,Travel and subsistence UK,Patents Directorate,Personal expenses name witheld,ER125810,26.68,Not applicable,
Department for Business Innovation and Skills,Intellectual Property Office,10/11/2014,Travel and subsistence UK,International Policy Directorate,Personal expenses name witheld,ER126208,26.90,Not applicable,
Department for Business Innovation and Skills,Intellectual Property Office,21/11/2014,Travel and subsistence UK,"People, Property and Services Directorate",Personal expenses name witheld,ER126802,27.00,Not applicable,
Department for Business Innovation and Skills,Intellectual Property Office,28/11/2014,Travel and subsistence UK,Copyright and IP Enforcement Directorate,HRG UK,426094119,27.42,Not applicable,
Department for Business Innovation and Skills,Intellectual Property Office,28/11/2014,Travel and subsistence UK,Business Support Directorate,HRG UK,240929087,27.61,Not applicable,
Department for Business Innovation and Skills,Intellectual Property Office,28/11/2014,Travel and subsistence UK,International Policy Directorate,HRG UK,240910556,27.61,Not applicable,
Department for Business Innovation and Skills,Intellectual Property Office,28/11/2014,Travel and subsistence UK,International Policy Directorate,HRG UK,426244510,27.61,Not applicable,
Department for Business Innovation and Skills,Intellectual Property Office,19/11/2014,Travel and subsistence UK,"People, Property and Services Directorate",Personal expenses name witheld,ER126684,27.70,Not applicable,
Department for Business Innovation and Skills,Intellectual Property Office,28/11/2014,Travel and subsistence UK,Innovation Directorate,HRG UK,426244506,28.52,Not applicable,
Department for Business Innovation and Skills,Intellectual Property Office,28/11/2014,Travel and subsistence UK,International Policy Directorate,HRG UK,240910551,28.52,Not applicable,
Department for Business Innovation and Skills,Intellectual Property Office,18/11/2014,Travel and subsistence UK,Patents Directorate,Personal expenses name witheld,ER126690,28.55,Not applicable,
Department for Business Innovation and Skills,Intellectual Property Office,28/11/2014,Travel and subsistence UK,International Policy Directorate,HRG UK,240965757,28.71,Not applicable,
Department for Business Innovation and Skills,Intellectual Property Office,28/11/2014,Travel and subsistence UK,Copyright and IP Enforcement Directorate,HRG UK,240898973,28.82,Not applicable,
Department for Business Innovation and Skills,Intellectual Property Office,28/11/2014,Travel and subsistence UK,Copyright and IP Enforcement Directorate,HRG UK,426114255,28.82,Not applicable,
Department for Business Innovation and Skills,Intellectual Property Office,28/11/2014,Travel and subsistence UK,International Policy Directorate,HRG UK,426030397,28.82,Not applicable,
Department for Business Innovation and Skills,Intellectual Property Office,28/11/2014,Travel and subsistence UK,Copyright and IP Enforcement Directorate,HRG UK,240929092,28.82,Not applicable,
Department for Business Innovation and Skills,Intellectual Property Office,28/11/2014,Travel and subsistence UK,Copyright and IP Enforcement Directorate,HRG UK,240910558,29.32,Not applicable,
Department for Business Innovation and Skills,Intellectual Property Office,28/11/2014,Travel and subsistence UK,Innovation Directorate,HRG UK,426036367,30.51,Not applicable,
Department for Business Innovation and Skills,Intellectual Property Office,28/11/2014,Travel and subsistence UK,International Policy Directorate,HRG UK,426139255,30.51,Not applicable,
Department for Business Innovation and Skills,Intellectual Property Office,28/11/2014,Travel and subsistence UK,Business Support Directorate,HRG UK,426158863,30.51,Not applicable,
Department for Business Innovation and Skills,Intellectual Property Office,25/11/2014,Travel and subsistence UK,Copyright and IP Enforcement Directorate,Personal expenses name witheld,ER126789,31.00,Not applicable,
Department for Business Innovation and Skills,Intellectual Property Office,24/11/2014,Travel and subsistence UK,Trade Marks Directorate,Personal expenses name witheld,ER126873,31.05,Not applicable,
Department for Business Innovation and Skills,Intellectual Property Office,28/11/2014,Travel and subsistence UK,Copyright and IP Enforcement Directorate,HRG UK,240906374,31.42,Not applicable,
Department for Business Innovation and Skills,Intellectual Property Office,28/11/2014,Travel and subsistence UK,Innovation Directorate,HRG UK,426020423,31.51,Not applicable,
Department for Business Innovation and Skills,Intellectual Property Office,28/11/2014,Travel and subsistence UK,"People, Property and Services Directorate",HRG UK,240940967,31.51,Not applicable,
Department for Business Innovation and Skills,Intellectual Property Office,28/11/2014,Travel and subsistence UK,Innovation Directorate,HRG UK,426020973,31.51,Not applicable,
Department for Business Innovation and Skills,Intellectual Property Office,28/11/2014,Travel and subsistence UK,Innovation Directorate,HRG UK,426020637,31.51,Not applicable,
Department for Business Innovation and Skills,Intellectual Property Office,28/11/2014,Travel and subsistence UK,Innovation Directorate,HRG UK,426020639,31.51,Not applicable,
Department for Business Innovation and Skills,Intellectual Property Office,28/11/2014,Travel and subsistence UK,Innovation Directorate,HRG UK,426019800,31.51,Not applicable,
Department for Business Innovation and Skills,Intellectual Property Office,28/11/2014,Travel and subsistence UK,Innovation Directorate,HRG UK,426020975,31.51,Not applicable,
Department for Business Innovation and Skills,Intellectual Property Office,28/11/2014,Travel and subsistence UK,Copyright and IP Enforcement Directorate,HRG UK,426224114,31.81,Not applicable,
Department for Business Innovation and Skills,Intellectual Property Office,28/11/2014,Travel and subsistence UK,International Policy Directorate,HRG UK,240910557,31.81,Not applicable,
Department for Business Innovation and Skills,Intellectual Property Office,25/11/2014,Travel and subsistence UK,International Policy Directorate,Personal expenses name witheld,ER126807,32.00,Not applicable,
Department for Business Innovation and Skills,Intellectual Property Office,18/11/2014,Travel and subsistence UK,IMPROVE Project,Personal expenses name witheld,ER126650,32.40,Not applicable,
Department for Business Innovation and Skills,Intellectual Property Office,28/11/2014,Travel and subsistence UK,Copyright and IP Enforcement Directorate,HRG UK,426178068,32.40,Not applicable,
Department for Business Innovation and Skills,Intellectual Property Office,28/11/2014,Travel and subsistence UK,Copyright and IP Enforcement Directorate,HRG UK,240958608,32.40,Not applicable,
Department for Business Innovation and Skills,Intellectual Property Office,28/11/2014,Travel and subsistence UK,International Policy Directorate,HRG UK,426244505,32.71,Not applicable,
Department for Business Innovation and Skills,Intellectual Property Office,28/11/2014,Travel and subsistence UK,Copyright and IP Enforcement Directorate,HRG UK,426229431,32.89,Not applicable,
Department for Business Innovation and Skills,Intellectual Property Office,28/11/2014,Travel and subsistence UK,Copyright and IP Enforcement Directorate,HRG UK,426197228,33.10,Not applicable,
Department for Business Innovation and Skills,Intellectual Property Office,03/11/2014,Travel and subsistence UK,Patents Directorate,Personal expenses name witheld,ER125861,33.94,Not applicable,
Department for Business Innovation and Skills,Intellectual Property Office,28/11/2014,Travel and subsistence UK,International Policy Directorate,HRG UK,240965756,34.60,Not applicable,
Department for Business Innovation and Skills,Intellectual Property Office,26/11/2014,Travel and subsistence UK,Innovation Directorate,Personal expenses name witheld,ER127000,35.20,Not applicable,
Department for Business Innovation and Skills,Intellectual Property Office,28/11/2014,Travel and subsistence UK,Copyright and IP Enforcement Directorate,HRG UK,240979477,35.40,Not applicable,
Department for Business Innovation and Skills,Intellectual Property Office,28/11/2014,Travel and subsistence UK,Copyright and IP Enforcement Directorate,HRG UK,240969567,35.40,Not applicable,
Department for Business Innovation and Skills,Intellectual Property Office,28/11/2014,Travel and subsistence UK,Innovation Directorate,HRG UK,426021175,35.60,Not applicable,
Department for Business Innovation and Skills,Intellectual Property Office,18/11/2014,Travel and subsistence UK,Finance Directorate,Personal expenses name witheld,ER126564,35.95,Not applicable,
Department for Business Innovation and Skills,Intellectual Property Office,28/11/2014,Travel and subsistence UK,Innovation Directorate,HRG UK,426058093,36.29,Not applicable,
Department for Business Innovation and Skills,Intellectual Property Office,28/11/2014,Travel and subsistence UK,Innovation Directorate,Leasedrive Velo Rental Management Ltd,RHI01279413,36.82,Not applicable,
Department for Business Innovation and Skills,Intellectual Property Office,28/11/2014,Travel and subsistence UK,Innovation Directorate,HRG UK,240983472,36.89,Not applicable,
Department for Business Innovation and Skills,Intellectual Property Office,19/11/2014,Travel and subsistence UK,Patents Directorate,Personal expenses name witheld,ER126706,37.10,Not applicable,
Department for Business Innovation and Skills,Intellectual Property Office,03/11/2014,Travel and subsistence UK,International Policy Directorate,Personal expenses name witheld,ER125839,37.20,Not applicable,
Department for Business Innovation and Skills,Intellectual Property Office,03/11/2014,Travel and subsistence UK,Finance Directorate,Personal expenses name witheld,ER125858,37.50,Not applicable,
Department for Business Innovation and Skills,Intellectual Property Office,26/11/2014,Travel and subsistence UK,Innovation Directorate,Leasedrive Velo Rental Management Ltd,RHI01276727,37.94,Not applicable,
Department for Business Innovation and Skills,Intellectual Property Office,28/11/2014,Travel and subsistence UK,Patents Directorate,Personal expenses name witheld,ER127199,38.28,Not applicable,
Department for Business Innovation and Skills,Intellectual Property Office,28/11/2014,Travel and subsistence UK,Innovation Directorate,HRG UK,426199160,38.39,Not applicable,
Department for Business Innovation and Skills,Intellectual Property Office,28/11/2014,Travel and subsistence UK,International Policy Directorate,HRG UK,240987208,38.39,Not applicable,
Department for Business Innovation and Skills,Intellectual Property Office,28/11/2014,Travel and subsistence UK,Innovation Directorate,HRG UK,426031278,38.39,Not applicable,
Department for Business Innovation and Skills,Intellectual Property Office,28/11/2014,Travel and subsistence UK,Innovation Directorate,HRG UK,426001173,38.39,Not applicable,
Department for Business Innovation and Skills,Intellectual Property Office,28/11/2014,Travel and subsistence UK,Innovation Directorate,HRG UK,426001171,38.39,Not applicable,
Department for Business Innovation and Skills,Intellectual Property Office,28/11/2014,Travel and subsistence UK,Finance Directorate,HRG UK,240948997,38.49,Not applicable,
Department for Business Innovation and Skills,Intellectual Property Office,17/11/2014,Travel and subsistence UK,Business Support Directorate,Veezu Ltd T/A Dragon Taxis (Newport),2596,39.00,Not applicable,
Department for Business Innovation and Skills,Intellectual Property Office,28/11/2014,Travel and subsistence UK,Business Support Directorate,HRG UK,240898968,39.59,Not applicable,
Department for Business Innovation and Skills,Intellectual Property Office,28/11/2014,Travel and subsistence UK,Business Support Directorate,HRG UK,240898966,39.59,Not applicable,
Department for Business Innovation and Skills,Intellectual Property Office,28/11/2014,Travel and subsistence UK,Business Support Directorate,HRG UK,426229422,39.78,Not applicable,
Department for Business Innovation and Skills,Intellectual Property Office,28/11/2014,Travel and subsistence UK,Copyright and IP Enforcement Directorate,HRG UK,240983484,40.38,Not applicable,
Department for Business Innovation and Skills,Intellectual Property Office,17/11/2014,Travel and subsistence UK,Patents Directorate,Leasedrive Velo Rental Management Ltd,RHI01271593,40.99,Not applicable,
Department for Business Innovation and Skills,Intellectual Property Office,12/11/2014,Travel and subsistence UK,Patents Directorate,Leasedrive Velo Rental Management Ltd,RHI01270601,41.27,Not applicable,
Department for Business Innovation and Skills,Intellectual Property Office,20/11/2014,Travel and subsistence UK,Patents Directorate,Leasedrive Velo Rental Management Ltd,RHI01273877,41.27,Not applicable,
Department for Business Innovation and Skills,Intellectual Property Office,14/11/2014,Travel and subsistence UK,Patents Directorate,Leasedrive Velo Rental Management Ltd,RHI01272089,41.27,Not applicable,
Department for Business Innovation and Skills,Intellectual Property Office,03/11/2014,Travel and subsistence UK,Patents Directorate,Leasedrive Velo Rental Management Ltd,RHI01261533,41.27,Not applicable,
Department for Business Innovation and Skills,Intellectual Property Office,06/11/2014,Travel and subsistence UK,Patents Directorate,Leasedrive Velo Rental Management Ltd,RHI01265620,41.27,Not applicable,
Department for Business Innovation and Skills,Intellectual Property Office,06/11/2014,Travel and subsistence UK,Patents Directorate,Leasedrive Velo Rental Management Ltd,RHI01265621,41.27,Not applicable,
Department for Business Innovation and Skills,Intellectual Property Office,26/11/2014,Travel and subsistence UK,Patents Directorate,Leasedrive Velo Rental Management Ltd,RHI01277562,41.27,Not applicable,
Department for Business Innovation and Skills,Intellectual Property Office,17/11/2014,Travel and subsistence UK,Trade Marks Directorate,Veezu Ltd T/A Dragon Taxis (Newport),2596,41.40,Not applicable,
Department for Business Innovation and Skills,Intellectual Property Office,28/11/2014,Travel and subsistence UK,Business Support Directorate,HRG UK,240929093,41.48,Not applicable,
Department for Business Innovation and Skills,Intellectual Property Office,21/11/2014,Travel and subsistence UK,International Policy Directorate,Leasedrive Velo Rental Management Ltd,RHI01276003,41.60,Not applicable,
Department for Business Innovation and Skills,Intellectual Property Office,28/11/2014,Travel and subsistence UK,Copyright and IP Enforcement Directorate,Leasedrive Velo Rental Management Ltd,RHI01279410,41.60,Not applicable,
Department for Business Innovation and Skills,Intellectual Property Office,28/11/2014,Travel and subsistence UK,Innovation Directorate,HRG UK,426158589,41.97,Not applicable,
Department for Business Innovation and Skills,Intellectual Property Office,06/11/2014,Travel and subsistence UK,Innovation Directorate,Leasedrive Velo Rental Management Ltd,RHI01265625,42.88,Not applicable,
Department for Business Innovation and Skills,Intellectual Property Office,26/11/2014,Travel and subsistence UK,Innovation Directorate,Personal expenses name witheld,ER126879,43.40,Not applicable,
Department for Business Innovation and Skills,Intellectual Property Office,28/11/2014,Travel and subsistence UK,Innovation Directorate,HRG UK,240965758,43.48,Not applicable,
Department for Business Innovation and Skills,Intellectual Property Office,17/11/2014,Travel and subsistence UK,Patents Directorate,Personal expenses name witheld,ER126646,43.65,Not applicable,
Department for Business Innovation and Skills,Intellectual Property Office,18/11/2014,Travel and subsistence UK,Patents Directorate,Personal expenses name witheld,ER126653,43.65,Not applicable,
Department for Business Innovation and Skills,Intellectual Property Office,20/11/2014,Travel and subsistence UK,Patents Directorate,Leasedrive Velo Rental Management Ltd,RHI01273872,43.73,Not applicable,
Department for Business Innovation and Skills,Intellectual Property Office,07/11/2014,Travel and subsistence UK,Patents Directorate,Leasedrive Velo Rental Management Ltd,RHI01265623,43.73,Not applicable,
Department for Business Innovation and Skills,Intellectual Property Office,20/11/2014,Travel and subsistence UK,Patents Directorate,Leasedrive Velo Rental Management Ltd,RHI01273871,43.73,Not applicable,
Department for Business Innovation and Skills,Intellectual Property Office,28/11/2014,Travel and subsistence UK,Patents Directorate,Leasedrive Velo Rental Management Ltd,RHI01279414,43.73,Not applicable,
Department for Business Innovation and Skills,Intellectual Property Office,17/11/2014,Travel and subsistence UK,Copyright and IP Enforcement Directorate,Veezu Ltd T/A Dragon Taxis (Newport),2596,44.40,Not applicable,
Department for Business Innovation and Skills,Intellectual Property Office,28/11/2014,Travel and subsistence UK,Patents Directorate,HRG UK,426010755,44.87,Not applicable,
Department for Business Innovation and Skills,Intellectual Property Office,28/11/2014,Travel and subsistence UK,Copyright and IP Enforcement Directorate,HRG UK,240906375,44.96,Not applicable,
Department for Business Innovation and Skills,Intellectual Property Office,28/11/2014,Travel and subsistence UK,Trade Marks Directorate,HRG UK,426020425,44.96,Not applicable,
Department for Business Innovation and Skills,Intellectual Property Office,28/11/2014,Travel and subsistence UK,"People, Property and Services Directorate",HRG UK,426229424,47.28,Not applicable,
Department for Business Innovation and Skills,Intellectual Property Office,28/11/2014,Travel and subsistence UK,Central Support,HRG UK,426081803,47.28,Not applicable,
Department for Business Innovation and Skills,Intellectual Property Office,28/11/2014,Travel and subsistence UK,"People, Property and Services Directorate",HRG UK,426229426,47.28,Not applicable,
Department for Business Innovation and Skills,Intellectual Property Office,28/11/2014,Travel and subsistence UK,Copyright and IP Enforcement Directorate,HRG UK,240958306,47.86,Not applicable,
Department for Business Innovation and Skills,Intellectual Property Office,28/11/2014,Travel and subsistence UK,International Policy Directorate,HRG UK,240963894,47.86,Not applicable,
Department for Business Innovation and Skills,Intellectual Property Office,28/11/2014,Travel and subsistence UK,International Policy Directorate,HRG UK,240987207,47.86,Not applicable,
Department for Business Innovation and Skills,Intellectual Property Office,28/11/2014,Travel and subsistence UK,International Policy Directorate,HRG UK,426030395,47.86,Not applicable,
Department for Business Innovation and Skills,Intellectual Property Office,28/11/2014,Travel and subsistence UK,Copyright and IP Enforcement Directorate,HRG UK,240929090,47.86,Not applicable,
Department for Business Innovation and Skills,Intellectual Property Office,28/11/2014,Travel and subsistence UK,International Policy Directorate,HRG UK,426244504,47.86,Not applicable,
Department for Business Innovation and Skills,Intellectual Property Office,28/11/2014,Travel and subsistence UK,Copyright and IP Enforcement Directorate,HRG UK,426212261,48.45,Not applicable,
Department for Business Innovation and Skills,Intellectual Property Office,28/11/2014,Travel and subsistence UK,Copyright and IP Enforcement Directorate,HRG UK,240974449,48.45,Not applicable,
Department for Business Innovation and Skills,Intellectual Property Office,28/11/2014,Travel and subsistence UK,Business Support Directorate,HRG UK,426187569,48.45,Not applicable,
Department for Business Innovation and Skills,Intellectual Property Office,28/11/2014,Travel and subsistence UK,Innovation Directorate,HRG UK,426065288,49.05,Not applicable,
Department for Business Innovation and Skills,Intellectual Property Office,28/11/2014,Travel and subsistence UK,Innovation Directorate,HRG UK,426065279,49.05,Not applicable,
Department for Business Innovation and Skills,Intellectual Property Office,28/11/2014,Travel and subsistence UK,Innovation Directorate,HRG UK,426065282,49.05,Not applicable,
Department for Business Innovation and Skills,Intellectual Property Office,07/11/2014,Travel and subsistence UK,Patents Directorate,Leasedrive Velo Rental Management Ltd,RHI01267719,49.42,Not applicable,
Department for Business Innovation and Skills,Intellectual Property Office,12/11/2014,Travel and subsistence UK,Patents Directorate,Leasedrive Velo Rental Management Ltd,RHI01270600,49.42,Not applicable,
Department for Business Innovation and Skills,Intellectual Property Office,20/11/2014,Travel and subsistence UK,Patents Directorate,Leasedrive Velo Rental Management Ltd,RHI01273873,49.42,Not applicable,
Department for Business Innovation and Skills,Intellectual Property Office,28/11/2014,Travel and subsistence UK,Innovation Directorate,HRG UK,240989367,49.87,Not applicable,
Department for Business Innovation and Skills,Intellectual Property Office,28/11/2014,Travel and subsistence UK,Business Support Directorate,Personal expenses name witheld,ER127139,50.00,Not applicable,
Department for Business Innovation and Skills,Intellectual Property Office,28/11/2014,Travel and subsistence UK,Innovation Directorate,HRG UK,426182486,50.06,Not applicable,
Department for Business Innovation and Skills,Intellectual Property Office,28/11/2014,Travel and subsistence UK,Finance Directorate,HRG UK,426158156,50.37,Not applicable,
Department for Business Innovation and Skills,Intellectual Property Office,11/11/2014,Travel and subsistence UK,Innovation Directorate,Personal expenses name witheld,ER125537,50.60,Not applicable,
Department for Business Innovation and Skills,Intellectual Property Office,28/11/2014,Travel and subsistence UK,Innovation Directorate,HRG UK,240986173,50.65,Not applicable,
Department for Business Innovation and Skills,Intellectual Property Office,28/11/2014,Travel and subsistence UK,International Policy Directorate,HRG UK,240958065,50.65,Not applicable,
Department for Business Innovation and Skills,Intellectual Property Office,28/11/2014,Travel and subsistence UK,International Policy Directorate,HRG UK,426206303,50.65,Not applicable,
Department for Business Innovation and Skills,Intellectual Property Office,28/11/2014,Travel and subsistence UK,"People, Property and Services Directorate",HRG UK,240920205,51.05,Not applicable,
Department for Business Innovation and Skills,Intellectual Property Office,28/11/2014,Travel and subsistence UK,Trade Marks Directorate,HRG UK,240935312,51.05,Not applicable,
Department for Business Innovation and Skills,Intellectual Property Office,28/11/2014,Travel and subsistence UK,"People, Property and Services Directorate",HRG UK,240920206,51.05,Not applicable,
Department for Business Innovation and Skills,Intellectual Property Office,28/11/2014,Travel and subsistence UK,Patents Directorate,HRG UK,426229416,51.36,Not applicable,
Department for Business Innovation and Skills,Intellectual Property Office,25/11/2014,Travel and subsistence UK,Patents Directorate,Personal expenses name witheld,ER126833,51.90,Not applicable,
Department for Business Innovation and Skills,Intellectual Property Office,28/11/2014,Travel and subsistence UK,Copyright and IP Enforcement Directorate,HRG UK,240898972,51.95,Not applicable,
Department for Business Innovation and Skills,Intellectual Property Office,06/11/2014,Travel and subsistence UK,Patents Directorate,Personal expenses name witheld,ER126140,51.96,Not applicable,
Department for Business Innovation and Skills,Intellectual Property Office,28/11/2014,Travel and subsistence UK,Copyright and IP Enforcement Directorate,HRG UK,426194072,52.06,Not applicable,
Department for Business Innovation and Skills,Intellectual Property Office,13/11/2014,Travel and subsistence UK,Patents Directorate,Personal expenses name witheld,ER126527,52.60,Not applicable,
Department for Business Innovation and Skills,Intellectual Property Office,28/11/2014,Travel and subsistence UK,International Policy Directorate,HRG UK,426059042,52.85,Not applicable,
Department for Business Innovation and Skills,Intellectual Property Office,28/11/2014,Travel and subsistence UK,Innovation Directorate,HRG UK,240983481,52.85,Not applicable,
Department for Business Innovation and Skills,Intellectual Property Office,28/11/2014,Travel and subsistence UK,Innovation Directorate,HRG UK,426093953,52.85,Not applicable,
Department for Business Innovation and Skills,Intellectual Property Office,28/11/2014,Travel and subsistence UK,Patents Directorate,HRG UK,240937249,52.85,Not applicable,
Department for Business Innovation and Skills,Intellectual Property Office,28/11/2014,Travel and subsistence UK,Innovation Directorate,HRG UK,426093814,52.85,Not applicable,
Department for Business Innovation and Skills,Intellectual Property Office,28/11/2014,Travel and subsistence UK,Business Support Directorate,HRG UK,426030603,52.85,Not applicable,
Department for Business Innovation and Skills,Intellectual Property Office,28/11/2014,Travel and subsistence UK,Innovation Directorate,HRG UK,426020976,52.85,Not applicable,
Department for Business Innovation and Skills,Intellectual Property Office,26/11/2014,Travel and subsistence UK,Trade Marks Directorate,Leasedrive Velo Rental Management Ltd,RHI01277563,52.97,Not applicable,
Department for Business Innovation and Skills,Intellectual Property Office,28/11/2014,Travel and subsistence UK,Copyright and IP Enforcement Directorate,HRG UK,426036365,53.45,Not applicable,
Department for Business Innovation and Skills,Intellectual Property Office,28/11/2014,Travel and subsistence UK,Copyright and IP Enforcement Directorate,HRG UK,426229435,53.45,Not applicable,
Department for Business Innovation and Skills,Intellectual Property Office,28/11/2014,Travel and subsistence UK,International Policy Directorate,HRG UK,426244511,53.64,Not applicable,
Department for Business Innovation and Skills,Intellectual Property Office,28/11/2014,Travel and subsistence UK,International Policy Directorate,HRG UK,240974019,53.86,Not applicable,
Department for Business Innovation and Skills,Intellectual Property Office,28/11/2014,Travel and subsistence UK,International Policy Directorate,HRG UK,426193075,53.86,Not applicable,
Department for Business Innovation and Skills,Intellectual Property Office,28/11/2014,Travel and subsistence UK,Innovation Directorate,HRG UK,240989370,53.86,Not applicable,
Department for Business Innovation and Skills,Intellectual Property Office,28/11/2014,Travel and subsistence UK,Patents Directorate,HRG UK,426229415,54.94,Not applicable,
Department for Business Innovation and Skills,Intellectual Property Office,28/11/2014,Travel and subsistence UK,Copyright and IP Enforcement Directorate,HRG UK,240979471,56.43,Not applicable,
Department for Business Innovation and Skills,Intellectual Property Office,28/11/2014,Travel and subsistence UK,Patents Directorate,HRG UK,426198075,56.43,Not applicable,
Department for Business Innovation and Skills,Intellectual Property Office,28/11/2014,Travel and subsistence UK,Copyright and IP Enforcement Directorate,HRG UK,240910561,56.43,Not applicable,
Department for Business Innovation and Skills,Intellectual Property Office,28/11/2014,Travel and subsistence UK,International Policy Directorate,HRG UK,426180073,56.43,Not applicable,
Department for Business Innovation and Skills,Intellectual Property Office,28/11/2014,Travel and subsistence UK,International Policy Directorate,HRG UK,240983467,56.43,Not applicable,
Department for Business Innovation and Skills,Intellectual Property Office,28/11/2014,Travel and subsistence UK,Patents Directorate,HRG UK,426191277,56.43,Not applicable,
Department for Business Innovation and Skills,Intellectual Property Office,28/11/2014,Travel and subsistence UK,International Policy Directorate,HRG UK,426134133,56.43,Not applicable,
Department for Business Innovation and Skills,Intellectual Property Office,28/11/2014,Travel and subsistence UK,International Policy Directorate,HRG UK,240983464,56.43,Not applicable,
Department for Business Innovation and Skills,Intellectual Property Office,28/11/2014,Travel and subsistence UK,International Policy Directorate,HRG UK,426005275,56.43,Not applicable,
Department for Business Innovation and Skills,Intellectual Property Office,28/11/2014,Travel and subsistence UK,Patents Directorate,HRG UK,240898979,56.43,Not applicable,
Department for Business Innovation and Skills,Intellectual Property Office,28/11/2014,Travel and subsistence UK,Copyright and IP Enforcement Directorate,HRG UK,240979474,56.43,Not applicable,
Department for Business Innovation and Skills,Intellectual Property Office,28/11/2014,Travel and subsistence UK,Patents Directorate,HRG UK,426079869,56.43,Not applicable,
Department for Business Innovation and Skills,Intellectual Property Office,28/11/2014,Travel and subsistence UK,"People, Property and Services Directorate",HRG UK,426229438,56.43,Not applicable,
Department for Business Innovation and Skills,Intellectual Property Office,28/11/2014,Travel and subsistence UK,International Policy Directorate,HRG UK,426115235,56.85,Not applicable,
Department for Business Innovation and Skills,Intellectual Property Office,28/11/2014,Travel and subsistence UK,International Policy Directorate,HRG UK,426063823,56.85,Not applicable,
Department for Business Innovation and Skills,Intellectual Property Office,28/11/2014,Travel and subsistence UK,Innovation Directorate,HRG UK,240983478,56.85,Not applicable,
Department for Business Innovation and Skills,Intellectual Property Office,28/11/2014,Travel and subsistence UK,Copyright and IP Enforcement Directorate,HRG UK,240910554,56.85,Not applicable,
Department for Business Innovation and Skills,Intellectual Property Office,10/11/2014,Travel and subsistence UK,International Policy Directorate,Personal expenses name witheld,ER126207,57.40,Not applicable,
Department for Business Innovation and Skills,Intellectual Property Office,28/11/2014,Travel and subsistence UK,Innovation Directorate,HRG UK,240965759,58.83,Not applicable,
Department for Business Innovation and Skills,Intellectual Property Office,28/11/2014,Travel and subsistence UK,Copyright and IP Enforcement Directorate,HRG UK,240965771,60.43,Not applicable,
Department for Business Innovation and Skills,Intellectual Property Office,28/11/2014,Travel and subsistence UK,Copyright and IP Enforcement Directorate,HRG UK,426139257,60.43,Not applicable,
Department for Business Innovation and Skills,Intellectual Property Office,17/11/2014,Travel and subsistence UK,Innovation Directorate,M Khalid Nadeem Khan,KKHAN-15SEP14,61.60,Not applicable,
Department for Business Innovation and Skills,Intellectual Property Office,28/11/2014,Travel and subsistence UK,Business Support Directorate,HRG UK,426160714,61.84,Not applicable,
Department for Business Innovation and Skills,Intellectual Property Office,28/11/2014,Travel and subsistence UK,Business Support Directorate,HRG UK,426043792,61.84,Not applicable,
Department for Business Innovation and Skills,Intellectual Property Office,28/11/2014,Travel and subsistence UK,Business Support Directorate,HRG UK,426043794,61.84,Not applicable,
Department for Business Innovation and Skills,Intellectual Property Office,28/11/2014,Travel and subsistence UK,Business Support Directorate,HRG UK,426229414,61.84,Not applicable,
Department for Business Innovation and Skills,Intellectual Property Office,28/11/2014,Travel and subsistence UK,Business Support Directorate,HRG UK,240976870,62.42,Not applicable,
Department for Business Innovation and Skills,Intellectual Property Office,28/11/2014,Travel and subsistence UK,Copyright and IP Enforcement Directorate,HRG UK,240970688,63.11,Not applicable,
Department for Business Innovation and Skills,Intellectual Property Office,21/11/2014,Travel and subsistence UK,"People, Property and Services Directorate",Personal expenses name witheld,ER126372,63.20,Not applicable,
Department for Business Innovation and Skills,Intellectual Property Office,21/11/2014,Travel and subsistence UK,Innovation Directorate,Personal expenses name witheld,ER126801,63.38,Not applicable,
Department for Business Innovation and Skills,Intellectual Property Office,28/11/2014,Travel and subsistence UK,Business Support Directorate,HRG UK,426169860,63.43,Not applicable,
Department for Business Innovation and Skills,Intellectual Property Office,28/11/2014,Travel and subsistence UK,International Policy Directorate,HRG UK,426016745,64.01,Not applicable,
Department for Business Innovation and Skills,Intellectual Property Office,28/11/2014,Travel and subsistence UK,International Policy Directorate,HRG UK,426193574,64.01,Not applicable,
Department for Business Innovation and Skills,Intellectual Property Office,28/11/2014,Travel and subsistence UK,Copyright and IP Enforcement Directorate,HRG UK,240983486,64.01,Not applicable,
Department for Business Innovation and Skills,Intellectual Property Office,28/11/2014,Travel and subsistence UK,Copyright and IP Enforcement Directorate,HRG UK,426114253,64.01,Not applicable,
Department for Business Innovation and Skills,Intellectual Property Office,28/11/2014,Travel and subsistence UK,Copyright and IP Enforcement Directorate,HRG UK,240958304,64.01,Not applicable,
Department for Business Innovation and Skills,Intellectual Property Office,28/11/2014,Travel and subsistence UK,International Policy Directorate,HRG UK,426181069,64.01,Not applicable,
Department for Business Innovation and Skills,Intellectual Property Office,28/11/2014,Travel and subsistence UK,Copyright and IP Enforcement Directorate,HRG UK,426229419,64.52,Not applicable,
Department for Business Innovation and Skills,Intellectual Property Office,28/11/2014,Travel and subsistence UK,Business Support Directorate,HRG UK,240961568,65.42,Not applicable,
Department for Business Innovation and Skills,Intellectual Property Office,28/11/2014,Travel and subsistence UK,Business Support Directorate,HRG UK,426043793,65.42,Not applicable,
Department for Business Innovation and Skills,Intellectual Property Office,03/11/2014,Travel and subsistence UK,Innovation Directorate,Leasedrive Velo Rental Management Ltd,RHI01263678,66.77,Not applicable,
Department for Business Innovation and Skills,Intellectual Property Office,28/11/2014,Travel and subsistence UK,Innovation Directorate,HRG UK,426001178,67.01,Not applicable,
Department for Business Innovation and Skills,Intellectual Property Office,28/11/2014,Travel and subsistence UK,Innovation Directorate,HRG UK,426001175,67.01,Not applicable,
Department for Business Innovation and Skills,Intellectual Property Office,28/11/2014,Travel and subsistence UK,Innovation Directorate,HRG UK,426199159,68.11,Not applicable,
Department for Business Innovation and Skills,Intellectual Property Office,28/11/2014,Travel and subsistence UK,Innovation Directorate,Personal expenses name witheld,ER126939,68.20,Not applicable,
Department for Business Innovation and Skills,Intellectual Property Office,28/11/2014,Travel and subsistence UK,International Policy Directorate,HRG UK,426139254,68.40,Not applicable,
Department for Business Innovation and Skills,Intellectual Property Office,28/11/2014,Travel and subsistence UK,International Policy Directorate,HRG UK,426204531,68.40,Not applicable,
Department for Business Innovation and Skills,Intellectual Property Office,18/11/2014,Travel and subsistence UK,"People, Property and Services Directorate",Personal expenses name witheld,ER126373,68.70,Not applicable,
Department for Business Innovation and Skills,Intellectual Property Office,28/11/2014,Travel and subsistence UK,Trade Marks Directorate,HRG UK,426235376,69.30,Not applicable,
Department for Business Innovation and Skills,Intellectual Property Office,28/11/2014,Travel and subsistence UK,Trade Marks Directorate,HRG UK,426224916,69.30,Not applicable,
Department for Business Innovation and Skills,Intellectual Property Office,28/11/2014,Travel and subsistence UK,Patents Directorate,HRG UK,426244508,70.39,Not applicable,
Department for Business Innovation and Skills,Intellectual Property Office,28/11/2014,Travel and subsistence UK,International Policy Directorate,HRG UK,426036370,70.39,Not applicable,
Department for Business Innovation and Skills,Intellectual Property Office,28/11/2014,Travel and subsistence UK,International Policy Directorate,HRG UK,240965754,71.00,Not applicable,
Department for Business Innovation and Skills,Intellectual Property Office,28/11/2014,Travel and subsistence UK,Innovation Directorate,HRG UK,426001182,71.10,Not applicable,
Department for Business Innovation and Skills,Intellectual Property Office,25/11/2014,Travel and subsistence UK,Innovation Directorate,Personal expenses name witheld,ER126919,71.51,Not applicable,
Department for Business Innovation and Skills,Intellectual Property Office,28/11/2014,Travel and subsistence UK,Copyright and IP Enforcement Directorate,HRG UK,240965305,71.61,Not applicable,
Department for Business Innovation and Skills,Intellectual Property Office,28/11/2014,Travel and subsistence UK,Copyright and IP Enforcement Directorate,HRG UK,426194073,75.70,Not applicable,
Department for Business Innovation and Skills,Intellectual Property Office,17/11/2014,Travel and subsistence UK,Innovation Directorate,Leasedrive Velo Rental Management Ltd,RHI01270598,75.89,Not applicable,
Department for Business Innovation and Skills,Intellectual Property Office,20/11/2014,Travel and subsistence UK,Innovation Directorate,Leasedrive Velo Rental Management Ltd,RHI01273876,75.89,Not applicable,
Department for Business Innovation and Skills,Intellectual Property Office,28/11/2014,Travel and subsistence UK,International Policy Directorate,HRG UK,426041313,75.89,Not applicable,
Department for Business Innovation and Skills,Intellectual Property Office,28/11/2014,Travel and subsistence UK,International Policy Directorate,HRG UK,426036360,75.89,Not applicable,
Department for Business Innovation and Skills,Intellectual Property Office,28/11/2014,Travel and subsistence UK,Business Support Directorate,HRG UK,426158862,75.99,Not applicable,
Department for Business Innovation and Skills,Intellectual Property Office,28/11/2014,Travel and subsistence UK,Innovation Directorate,HRG UK,426086578,76.38,Not applicable,
Department for Business Innovation and Skills,Intellectual Property Office,28/11/2014,Travel and subsistence UK,Innovation Directorate,HRG UK,426082589,76.38,Not applicable,
Department for Business Innovation and Skills,Intellectual Property Office,28/11/2014,Travel and subsistence UK,Patents Directorate,HRG UK,426211443,76.38,Not applicable,
Department for Business Innovation and Skills,Intellectual Property Office,17/11/2014,Travel and subsistence UK,International Policy Directorate,Veezu Ltd T/A Dragon Taxis (Newport),2596,76.80,Not applicable,
Department for Business Innovation and Skills,Intellectual Property Office,28/11/2014,Travel and subsistence UK,Patents Directorate,HRG UK,426129180,76.88,Not applicable,
Department for Business Innovation and Skills,Intellectual Property Office,28/11/2014,Travel and subsistence UK,Patents Directorate,HRG UK,426084496,76.88,Not applicable,
Department for Business Innovation and Skills,Intellectual Property Office,28/11/2014,Travel and subsistence UK,Patents Directorate,HRG UK,426132412,76.88,Not applicable,
Department for Business Innovation and Skills,Intellectual Property Office,28/11/2014,Travel and subsistence UK,Innovation Directorate,HRG UK,240983470,77.27,Not applicable,
Department for Business Innovation and Skills,Intellectual Property Office,14/11/2014,Travel and subsistence UK,Innovation Directorate,Personal expenses name witheld,ER126552,77.30,Not applicable,
Department for Business Innovation and Skills,Intellectual Property Office,28/11/2014,Travel and subsistence UK,Copyright and IP Enforcement Directorate,HRG UK,426178069,77.60,Not applicable,
Department for Business Innovation and Skills,Intellectual Property Office,28/11/2014,Travel and subsistence UK,Copyright and IP Enforcement Directorate,HRG UK,426229436,77.60,Not applicable,
Department for Business Innovation and Skills,Intellectual Property Office,28/11/2014,Travel and subsistence UK,Finance Directorate,HRG UK,426014282,77.60,Not applicable,
Department for Business Innovation and Skills,Intellectual Property Office,28/11/2014,Travel and subsistence UK,Copyright and IP Enforcement Directorate,HRG UK,240906373,78.38,Not applicable,
Department for Business Innovation and Skills,Intellectual Property Office,28/11/2014,Travel and subsistence UK,Patents Directorate,HRG UK,426187568,78.38,Not applicable,
Department for Business Innovation and Skills,Intellectual Property Office,10/11/2014,Travel and subsistence UK,Business Support Directorate,Leasedrive Velo Rental Management Ltd,RHI01268067,78.70,Not applicable,
Department for Business Innovation and Skills,Intellectual Property Office,28/11/2014,Travel and subsistence UK,Copyright and IP Enforcement Directorate,HRG UK,426229434,81.17,Not applicable,
Department for Business Innovation and Skills,Intellectual Property Office,28/11/2014,Travel and subsistence UK,Copyright and IP Enforcement Directorate,HRG UK,240965770,81.17,Not applicable,
Department for Business Innovation and Skills,Intellectual Property Office,28/11/2014,Travel and subsistence UK,Finance Directorate,HRG UK,240948998,81.99,Not applicable,
Department for Business Innovation and Skills,Intellectual Property Office,06/11/2014,Travel and subsistence UK,Trade Marks Directorate,Leasedrive Velo Rental Management Ltd,RHI01265624,82.26,Not applicable,
Department for Business Innovation and Skills,Intellectual Property Office,05/11/2014,Travel and subsistence UK,Innovation Directorate,Personal expenses name witheld,ER125803,83.90,Not applicable,
Department for Business Innovation and Skills,Intellectual Property Office,10/11/2014,Travel and subsistence UK,Innovation Directorate,Personal expenses name witheld,ER126178,83.90,Not applicable,
Department for Business Innovation and Skills,Intellectual Property Office,17/11/2014,Travel and subsistence UK,Trade Marks Directorate,Veezu Ltd T/A Dragon Taxis (Newport),2596,84.00,Not applicable,
Department for Business Innovation and Skills,Intellectual Property Office,28/11/2014,Travel and subsistence UK,International Policy Directorate,HRG UK,426016511,84.16,Not applicable,
Department for Business Innovation and Skills,Intellectual Property Office,28/11/2014,Travel and subsistence UK,Patents Directorate,HRG UK,426229412,84.16,Not applicable,
Department for Business Innovation and Skills,Intellectual Property Office,28/11/2014,Travel and subsistence UK,Innovation Directorate,HRG UK,426178954,84.16,Not applicable,
Department for Business Innovation and Skills,Intellectual Property Office,28/11/2014,Travel and subsistence UK,Innovation Directorate,HRG UK,426179075,84.16,Not applicable,
Department for Business Innovation and Skills,Intellectual Property Office,28/11/2014,Travel and subsistence UK,Copyright and IP Enforcement Directorate,HRG UK,426224113,84.16,Not applicable,
Department for Business Innovation and Skills,Intellectual Property Office,28/11/2014,Travel and subsistence UK,IMPROVE Project,HRG UK,426016207,84.16,Not applicable,
Department for Business Innovation and Skills,Intellectual Property Office,28/11/2014,Travel and subsistence UK,Business Support Directorate,HRG UK,426169859,84.16,Not applicable,
Department for Business Innovation and Skills,Intellectual Property Office,28/11/2014,Travel and subsistence UK,Innovation Directorate,HRG UK,426179077,84.16,Not applicable,
Department for Business Innovation and Skills,Intellectual Property Office,05/11/2014,Travel and subsistence UK,Innovation Directorate,Personal expenses name witheld,ER125802,84.90,Not applicable,
Department for Business Innovation and Skills,Intellectual Property Office,28/11/2014,Travel and subsistence UK,Innovation Directorate,HRG UK,426001172,85.26,Not applicable,
Department for Business Innovation and Skills,Intellectual Property Office,28/11/2014,Travel and subsistence UK,Innovation Directorate,HRG UK,426001170,85.26,Not applicable,
Department for Business Innovation and Skills,Intellectual Property Office,13/11/2014,Travel and subsistence UK,Patents Directorate,Personal expenses name witheld,ER126427,85.40,Not applicable,
Department for Business Innovation and Skills,Intellectual Property Office,28/11/2014,Travel and subsistence UK,International Policy Directorate,HRG UK,426193074,85.57,Not applicable,
Department for Business Innovation and Skills,Intellectual Property Office,28/11/2014,Travel and subsistence UK,International Policy Directorate,HRG UK,240957852,86.16,Not applicable,
Department for Business Innovation and Skills,Intellectual Property Office,28/11/2014,Travel and subsistence UK,Copyright and IP Enforcement Directorate,HRG UK,426075511,87.35,Not applicable,
Department for Business Innovation and Skills,Intellectual Property Office,28/11/2014,Travel and subsistence UK,International Policy Directorate,HRG UK,426158701,87.35,Not applicable,
Department for Business Innovation and Skills,Intellectual Property Office,28/11/2014,Travel and subsistence UK,International Policy Directorate,HRG UK,240965769,87.35,Not applicable,
Department for Business Innovation and Skills,Intellectual Property Office,28/11/2014,Travel and subsistence UK,International Policy Directorate,HRG UK,426129181,87.35,Not applicable,
Department for Business Innovation and Skills,Intellectual Property Office,28/11/2014,Travel and subsistence UK,Innovation Directorate,HRG UK,240898974,87.35,Not applicable,
Department for Business Innovation and Skills,Intellectual Property Office,28/11/2014,Travel and subsistence UK,Copyright and IP Enforcement Directorate,HRG UK,240979469,87.35,Not applicable,
Department for Business Innovation and Skills,Intellectual Property Office,28/11/2014,Travel and subsistence UK,Copyright and IP Enforcement Directorate,HRG UK,426019530,87.35,Not applicable,
Department for Business Innovation and Skills,Intellectual Property Office,28/11/2014,Travel and subsistence UK,Copyright and IP Enforcement Directorate,HRG UK,426139256,87.35,Not applicable,
Department for Business Innovation and Skills,Intellectual Property Office,28/11/2014,Travel and subsistence UK,International Policy Directorate,HRG UK,240974021,87.35,Not applicable,
Department for Business Innovation and Skills,Intellectual Property Office,28/11/2014,Travel and subsistence UK,Innovation Directorate,HRG UK,426165225,87.35,Not applicable,
Department for Business Innovation and Skills,Intellectual Property Office,28/11/2014,Travel and subsistence UK,Copyright and IP Enforcement Directorate,HRG UK,426187574,87.35,Not applicable,
Department for Business Innovation and Skills,Intellectual Property Office,28/11/2014,Travel and subsistence UK,Copyright and IP Enforcement Directorate,HRG UK,426158865,87.35,Not applicable,
Department for Business Innovation and Skills,Intellectual Property Office,28/11/2014,Travel and subsistence UK,International Policy Directorate,HRG UK,426171689,87.35,Not applicable,
Department for Business Innovation and Skills,Intellectual Property Office,28/11/2014,Travel and subsistence UK,Innovation Directorate,HRG UK,426165226,87.35,Not applicable,
Department for Business Innovation and Skills,Intellectual Property Office,28/11/2014,Travel and subsistence UK,Copyright and IP Enforcement Directorate,HRG UK,426063825,87.35,Not applicable,
Department for Business Innovation and Skills,Intellectual Property Office,28/11/2014,Travel and subsistence UK,Copyright and IP Enforcement Directorate,HRG UK,426187575,87.35,Not applicable,
Department for Business Innovation and Skills,Intellectual Property Office,28/11/2014,Travel and subsistence UK,Copyright and IP Enforcement Directorate,HRG UK,426083778,87.86,Not applicable,
Department for Business Innovation and Skills,Intellectual Property Office,28/11/2014,Travel and subsistence UK,Copyright and IP Enforcement Directorate,HRG UK,426063824,87.86,Not applicable,
Department for Business Innovation and Skills,Intellectual Property Office,28/11/2014,Travel and subsistence UK,Innovation Directorate,Personal expenses name witheld,ER127140,88.15,Not applicable,
Department for Business Innovation and Skills,Intellectual Property Office,27/11/2014,Travel and subsistence UK,Innovation Directorate,Personal expenses name witheld,ER127098,88.15,Not applicable,
Department for Business Innovation and Skills,Intellectual Property Office,24/11/2014,Travel and subsistence UK,International Policy Directorate,Personal expenses name witheld,ER126882,88.15,Not applicable,
Department for Business Innovation and Skills,Intellectual Property Office,28/11/2014,Travel and subsistence UK,Copyright and IP Enforcement Directorate,HRG UK,426229427,89.14,Not applicable,
Department for Business Innovation and Skills,Intellectual Property Office,28/11/2014,Travel and subsistence UK,Copyright and IP Enforcement Directorate,HRG UK,426229429,89.46,Not applicable,
Department for Business Innovation and Skills,Intellectual Property Office,28/11/2014,Travel and subsistence UK,Innovation Directorate,HRG UK,426199158,91.44,Not applicable,
Department for Business Innovation and Skills,Intellectual Property Office,20/11/2014,Travel and subsistence UK,IMPROVE Project,Personal expenses name witheld,ER126787,91.60,Not applicable,
Department for Business Innovation and Skills,Intellectual Property Office,28/11/2014,Travel and subsistence UK,International Policy Directorate,HRG UK,426134135,91.84,Not applicable,
Department for Business Innovation and Skills,Intellectual Property Office,28/11/2014,Travel and subsistence UK,"People, Property and Services Directorate",HRG UK,240950647,91.84,Not applicable,
Department for Business Innovation and Skills,Intellectual Property Office,28/11/2014,Travel and subsistence UK,"People, Property and Services Directorate",HRG UK,240938290,91.84,Not applicable,
Department for Business Innovation and Skills,Intellectual Property Office,28/11/2014,Travel and subsistence UK,International Policy Directorate,HRG UK,240898970,91.84,Not applicable,
Department for Business Innovation and Skills,Intellectual Property Office,28/11/2014,Travel and subsistence UK,Patents Directorate,HRG UK,426129179,91.84,Not applicable,
Department for Business Innovation and Skills,Intellectual Property Office,28/11/2014,Travel and subsistence UK,Copyright and IP Enforcement Directorate,HRG UK,240953744,91.84,Not applicable,
Department for Business Innovation and Skills,Intellectual Property Office,28/11/2014,Travel and subsistence UK,Central Support,HRG UK,240984119,91.84,Not applicable,
Department for Business Innovation and Skills,Intellectual Property Office,28/11/2014,Travel and subsistence UK,Trade Marks Directorate,HRG UK,240910555,91.84,Not applicable,
Department for Business Innovation and Skills,Intellectual Property Office,24/11/2014,Travel and subsistence UK,International Policy Directorate,Personal expenses name witheld,ER126875,93.20,Not applicable,
Department for Business Innovation and Skills,Intellectual Property Office,28/11/2014,Travel and subsistence UK,Innovation Directorate,Personal expenses name witheld,ER127197,93.20,Not applicable,
Department for Business Innovation and Skills,Intellectual Property Office,28/11/2014,Travel and subsistence UK,"People, Property and Services Directorate",HRG UK,426169465,93.33,Not applicable,
Department for Business Innovation and Skills,Intellectual Property Office,28/11/2014,Travel and subsistence UK,Patents Directorate,HRG UK,426158864,93.33,Not applicable,
Department for Business Innovation and Skills,Intellectual Property Office,28/11/2014,Travel and subsistence UK,Copyright and IP Enforcement Directorate,HRG UK,426229432,93.33,Not applicable,
Department for Business Innovation and Skills,Intellectual Property Office,28/11/2014,Travel and subsistence UK,Patents Directorate,HRG UK,426075507,93.33,Not applicable,
Department for Business Innovation and Skills,Intellectual Property Office,28/11/2014,Travel and subsistence UK,"People, Property and Services Directorate",HRG UK,426169687,93.33,Not applicable,
Department for Business Innovation and Skills,Intellectual Property Office,28/11/2014,Travel and subsistence UK,International Policy Directorate,HRG UK,426212264,93.33,Not applicable,
Department for Business Innovation and Skills,Intellectual Property Office,28/11/2014,Travel and subsistence UK,Patents Directorate,HRG UK,426036363,93.33,Not applicable,
Department for Business Innovation and Skills,Intellectual Property Office,28/11/2014,Travel and subsistence UK,"People, Property and Services Directorate",HRG UK,426170574,93.33,Not applicable,
Department for Business Innovation and Skills,Intellectual Property Office,28/11/2014,Travel and subsistence UK,"People, Property and Services Directorate",HRG UK,426169361,93.33,Not applicable,
Department for Business Innovation and Skills,Intellectual Property Office,28/11/2014,Travel and subsistence UK,Trade Marks Directorate,HRG UK,426142419,93.71,Not applicable,
Department for Business Innovation and Skills,Intellectual Property Office,28/11/2014,Travel and subsistence UK,Copyright and IP Enforcement Directorate,HRG UK,426094118,93.84,Not applicable,
Department for Business Innovation and Skills,Intellectual Property Office,28/11/2014,Travel and subsistence UK,Innovation Directorate,HRG UK,426229421,93.84,Not applicable,
Department for Business Innovation and Skills,Intellectual Property Office,28/11/2014,Travel and subsistence UK,Copyright and IP Enforcement Directorate,HRG UK,426057857,93.84,Not applicable,
Department for Business Innovation and Skills,Intellectual Property Office,28/11/2014,Travel and subsistence UK,Copyright and IP Enforcement Directorate,HRG UK,240983474,93.84,Not applicable,
Department for Business Innovation and Skills,Intellectual Property Office,28/11/2014,Travel and subsistence UK,International Policy Directorate,HRG UK,426041314,93.84,Not applicable,
Department for Business Innovation and Skills,Intellectual Property Office,28/11/2014,Travel and subsistence UK,Innovation Directorate,HRG UK,426179859,93.84,Not applicable,
Department for Business Innovation and Skills,Intellectual Property Office,28/11/2014,Travel and subsistence UK,Finance Directorate,HRG UK,426100460,94.34,Not applicable,
Department for Business Innovation and Skills,Intellectual Property Office,11/11/2014,Travel and subsistence UK,International Policy Directorate,Personal expenses name witheld,ER126323,94.55,Not applicable,
Department for Business Innovation and Skills,Intellectual Property Office,25/11/2014,Travel and subsistence UK,Trade Marks Directorate,Cronin AM,52621,96.30,Not applicable,
Department for Business Innovation and Skills,Intellectual Property Office,28/11/2014,Travel and subsistence UK,Copyright and IP Enforcement Directorate,HRG UK,426194074,97.93,Not applicable,
Department for Business Innovation and Skills,Intellectual Property Office,28/11/2014,Travel and subsistence UK,Copyright and IP Enforcement Directorate,HRG UK,426194075,97.93,Not applicable,
Department for Business Innovation and Skills,Intellectual Property Office,28/11/2014,Travel and subsistence UK,Copyright and IP Enforcement Directorate,HRG UK,426158861,98.32,Not applicable,
Department for Business Innovation and Skills,Intellectual Property Office,28/11/2014,Travel and subsistence UK,Copyright and IP Enforcement Directorate,HRG UK,240898976,98.32,Not applicable,
Department for Business Innovation and Skills,Intellectual Property Office,28/11/2014,Travel and subsistence UK,Copyright and IP Enforcement Directorate,HRG UK,426244509,98.32,Not applicable,
Department for Business Innovation and Skills,Intellectual Property Office,28/11/2014,Travel and subsistence UK,International Policy Directorate,HRG UK,240898971,98.32,Not applicable,
Department for Business Innovation and Skills,Intellectual Property Office,28/11/2014,Travel and subsistence UK,Business Support Directorate,HRG UK,426169858,98.34,Not applicable,
Department for Business Innovation and Skills,Intellectual Property Office,28/11/2014,Travel and subsistence UK,Copyright and IP Enforcement Directorate,HRG UK,240910562,98.83,Not applicable,
Department for Business Innovation and Skills,Intellectual Property Office,13/11/2014,Travel and subsistence UK,International Policy Directorate,Personal expenses name witheld,ER126267,98.90,Not applicable,
Department for Business Innovation and Skills,Intellectual Property Office,28/11/2014,Travel and subsistence UK,Innovation Directorate,HRG UK,426031277,98.92,Not applicable,
Department for Business Innovation and Skills,Intellectual Property Office,13/11/2014,Travel and subsistence UK,Business Support Directorate,Personal expenses name witheld,ER126429,99.30,Not applicable,
Department for Business Innovation and Skills,Intellectual Property Office,28/11/2014,Travel and subsistence UK,Copyright and IP Enforcement Directorate,HRG UK,426030601,99.83,Not applicable,
Department for Business Innovation and Skills,Intellectual Property Office,28/11/2014,Travel and subsistence UK,Patents Directorate,HRG UK,240910550,99.83,Not applicable,
Department for Business Innovation and Skills,Intellectual Property Office,28/11/2014,Travel and subsistence UK,Copyright and IP Enforcement Directorate,HRG UK,426129182,99.83,Not applicable,
Department for Business Innovation and Skills,Intellectual Property Office,03/11/2014,Travel and subsistence UK,Central Support,Personal expenses name witheld,ER125602,100.00,Not applicable,
Department for Business Innovation and Skills,Intellectual Property Office,28/11/2014,Travel and subsistence UK,"People, Property and Services Directorate",HRG UK,426229423,101.92,Not applicable,
Department for Business Innovation and Skills,Intellectual Property Office,28/11/2014,Travel and subsistence UK,"People, Property and Services Directorate",HRG UK,426229425,101.92,Not applicable,
Department for Business Innovation and Skills,Intellectual Property Office,28/11/2014,Travel and subsistence UK,Business Support Directorate,HRG UK,426169857,101.92,Not applicable,
Department for Business Innovation and Skills,Intellectual Property Office,28/11/2014,Travel and subsistence UK,Copyright and IP Enforcement Directorate,HRG UK,426229418,101.92,Not applicable,
Department for Business Innovation and Skills,Intellectual Property Office,28/11/2014,Travel and subsistence UK,"People, Property and Services Directorate",HRG UK,426187572,101.92,Not applicable,
Department for Business Innovation and Skills,Intellectual Property Office,25/11/2014,Travel and subsistence UK,Innovation Directorate,Personal expenses name witheld,ER126937,102.00,Not applicable,
Department for Business Innovation and Skills,Intellectual Property Office,28/11/2014,Travel and subsistence UK,Patents Directorate,HRG UK,426010754,102.81,Not applicable,
Department for Business Innovation and Skills,Intellectual Property Office,28/11/2014,Travel and subsistence UK,International Policy Directorate,HRG UK,240898964,103.31,Not applicable,
Department for Business Innovation and Skills,Intellectual Property Office,28/11/2014,Travel and subsistence UK,Business Support Directorate,HRG UK,426187570,103.32,Not applicable,
Department for Business Innovation and Skills,Intellectual Property Office,28/11/2014,Travel and subsistence UK,Copyright and IP Enforcement Directorate,HRG UK,240974450,103.32,Not applicable,
Department for Business Innovation and Skills,Intellectual Property Office,28/11/2014,Travel and subsistence UK,Copyright and IP Enforcement Directorate,HRG UK,426212263,103.32,Not applicable,
Department for Business Innovation and Skills,Intellectual Property Office,28/11/2014,Travel and subsistence UK,Copyright and IP Enforcement Directorate,HRG UK,426139258,103.32,Not applicable,
Department for Business Innovation and Skills,Intellectual Property Office,28/11/2014,Travel and subsistence UK,International Policy Directorate,HRG UK,240974017,103.91,Not applicable,
Department for Business Innovation and Skills,Intellectual Property Office,28/11/2014,Travel and subsistence UK,IMPROVE Project,HRG UK,426016209,104.22,Not applicable,
Department for Business Innovation and Skills,Intellectual Property Office,28/11/2014,Travel and subsistence UK,International Policy Directorate,HRG UK,426180074,104.22,Not applicable,
Department for Business Innovation and Skills,Intellectual Property Office,28/11/2014,Travel and subsistence UK,International Policy Directorate,HRG UK,240983466,104.22,Not applicable,
Department for Business Innovation and Skills,Intellectual Property Office,28/11/2014,Travel and subsistence UK,Innovation Directorate,HRG UK,426065280,104.22,Not applicable,
Department for Business Innovation and Skills,Intellectual Property Office,28/11/2014,Travel and subsistence UK,Innovation Directorate,HRG UK,426065290,104.22,Not applicable,
Department for Business Innovation and Skills,Intellectual Property Office,28/11/2014,Travel and subsistence UK,Innovation Directorate,HRG UK,426065283,104.22,Not applicable,
Department for Business Innovation and Skills,Intellectual Property Office,28/11/2014,Travel and subsistence UK,Innovation Directorate,HRG UK,426019801,104.22,Not applicable,
Department for Business Innovation and Skills,Intellectual Property Office,28/11/2014,Travel and subsistence UK,Innovation Directorate,HRG UK,426001183,104.22,Not applicable,
Department for Business Innovation and Skills,Intellectual Property Office,28/11/2014,Travel and subsistence UK,Innovation Directorate,HRG UK,426178955,104.22,Not applicable,
Department for Business Innovation and Skills,Intellectual Property Office,28/11/2014,Travel and subsistence UK,Innovation Directorate,HRG UK,426020974,104.22,Not applicable,
Department for Business Innovation and Skills,Intellectual Property Office,28/11/2014,Travel and subsistence UK,International Policy Directorate,HRG UK,426005276,104.22,Not applicable,
Department for Business Innovation and Skills,Intellectual Property Office,28/11/2014,Travel and subsistence UK,International Policy Directorate,HRG UK,240983469,104.22,Not applicable,
Department for Business Innovation and Skills,Intellectual Property Office,28/11/2014,Travel and subsistence UK,International Policy Directorate,HRG UK,426134134,104.22,Not applicable,
Department for Business Innovation and Skills,Intellectual Property Office,28/11/2014,Travel and subsistence UK,Innovation Directorate,HRG UK,426179078,104.22,Not applicable,
Department for Business Innovation and Skills,Intellectual Property Office,28/11/2014,Travel and subsistence UK,Copyright and IP Enforcement Directorate,HRG UK,240979475,104.22,Not applicable,
Department for Business Innovation and Skills,Intellectual Property Office,28/11/2014,Travel and subsistence UK,Innovation Directorate,HRG UK,426001180,104.22,Not applicable,
Department for Business Innovation and Skills,Intellectual Property Office,28/11/2014,Travel and subsistence UK,Innovation Directorate,HRG UK,426179076,104.22,Not applicable,
Department for Business Innovation and Skills,Intellectual Property Office,28/11/2014,Travel and subsistence UK,Innovation Directorate,HRG UK,426021176,104.22,Not applicable,
Department for Business Innovation and Skills,Intellectual Property Office,28/11/2014,Travel and subsistence UK,Innovation Directorate,HRG UK,426001176,104.22,Not applicable,
Department for Business Innovation and Skills,Intellectual Property Office,28/11/2014,Travel and subsistence UK,"People, Property and Services Directorate",HRG UK,426187573,104.22,Not applicable,
Department for Business Innovation and Skills,Intellectual Property Office,28/11/2014,Travel and subsistence UK,"People, Property and Services Directorate",HRG UK,426229439,104.22,Not applicable,
Department for Business Innovation and Skills,Intellectual Property Office,28/11/2014,Travel and subsistence UK,Patents Directorate,HRG UK,426198076,104.22,Not applicable,
Department for Business Innovation and Skills,Intellectual Property Office,28/11/2014,Travel and subsistence UK,Patents Directorate,HRG UK,426079870,104.22,Not applicable,
Department for Business Innovation and Skills,Intellectual Property Office,28/11/2014,Travel and subsistence UK,Innovation Directorate,HRG UK,426020424,104.22,Not applicable,
Department for Business Innovation and Skills,Intellectual Property Office,28/11/2014,Travel and subsistence UK,Innovation Directorate,HRG UK,426020640,104.22,Not applicable,
Department for Business Innovation and Skills,Intellectual Property Office,28/11/2014,Travel and subsistence UK,Innovation Directorate,HRG UK,426020638,104.22,Not applicable,
Department for Business Innovation and Skills,Intellectual Property Office,28/11/2014,Travel and subsistence UK,Patents Directorate,HRG UK,426191278,104.22,Not applicable,
Department for Business Innovation and Skills,Intellectual Property Office,28/11/2014,Travel and subsistence UK,Copyright and IP Enforcement Directorate,HRG UK,240906376,104.22,Not applicable,
Department for Business Innovation and Skills,Intellectual Property Office,28/11/2014,Travel and subsistence UK,Patents Directorate,HRG UK,240898980,104.22,Not applicable,
Department for Business Innovation and Skills,Intellectual Property Office,28/11/2014,Travel and subsistence UK,Business Support Directorate,HRG UK,240929089,104.22,Not applicable,
Department for Business Innovation and Skills,Intellectual Property Office,28/11/2014,Travel and subsistence UK,Copyright and IP Enforcement Directorate,HRG UK,240979473,104.22,Not applicable,
Department for Business Innovation and Skills,Intellectual Property Office,28/11/2014,Travel and subsistence UK,Business Support Directorate,HRG UK,240898967,104.80,Not applicable,
Department for Business Innovation and Skills,Intellectual Property Office,28/11/2014,Travel and subsistence UK,Business Support Directorate,HRG UK,240898969,104.80,Not applicable,
Department for Business Innovation and Skills,Intellectual Property Office,28/11/2014,Travel and subsistence UK,Copyright and IP Enforcement Directorate,HRG UK,426170251,104.80,Not applicable,
Department for Business Innovation and Skills,Intellectual Property Office,28/11/2014,Travel and subsistence UK,Innovation Directorate,HRG UK,240989365,104.80,Not applicable,
Department for Business Innovation and Skills,Intellectual Property Office,28/11/2014,Travel and subsistence UK,Copyright and IP Enforcement Directorate,HRG UK,426134132,104.80,Not applicable,
Department for Business Innovation and Skills,Intellectual Property Office,10/11/2014,Travel and subsistence UK,International Policy Directorate,Personal expenses name witheld,ER126266,105.20,Not applicable,
Department for Business Innovation and Skills,Intellectual Property Office,28/11/2014,Travel and subsistence UK,International Policy Directorate,HRG UK,426115234,106.90,Not applicable,
Department for Business Innovation and Skills,Intellectual Property Office,28/11/2014,Travel and subsistence UK,"People, Property and Services Directorate",HRG UK,240940968,106.90,Not applicable,
Department for Business Innovation and Skills,Intellectual Property Office,28/11/2014,Travel and subsistence UK,International Policy Directorate,HRG UK,426063822,106.90,Not applicable,
Department for Business Innovation and Skills,Intellectual Property Office,28/11/2014,Travel and subsistence UK,Copyright and IP Enforcement Directorate,HRG UK,240910553,106.90,Not applicable,
Department for Business Innovation and Skills,Intellectual Property Office,10/11/2014,Travel and subsistence UK,International Policy Directorate,Personal expenses name witheld,ER126228,107.20,Not applicable,
Department for Business Innovation and Skills,Intellectual Property Office,28/11/2014,Travel and subsistence UK,Copyright and IP Enforcement Directorate,HRG UK,240979480,107.30,Not applicable,
Department for Business Innovation and Skills,Intellectual Property Office,28/11/2014,Travel and subsistence UK,Copyright and IP Enforcement Directorate,HRG UK,240969569,107.30,Not applicable,
Department for Business Innovation and Skills,Intellectual Property Office,28/11/2014,Travel and subsistence UK,International Policy Directorate,HRG UK,426059041,107.81,Not applicable,
Department for Business Innovation and Skills,Intellectual Property Office,28/11/2014,Travel and subsistence UK,Innovation Directorate,HRG UK,426075508,107.81,Not applicable,
Department for Business Innovation and Skills,Intellectual Property Office,28/11/2014,Travel and subsistence UK,Patents Directorate,HRG UK,240937248,107.81,Not applicable,
Department for Business Innovation and Skills,Intellectual Property Office,28/11/2014,Travel and subsistence UK,Business Support Directorate,HRG UK,426030602,107.81,Not applicable,
Department for Business Innovation and Skills,Intellectual Property Office,28/11/2014,Travel and subsistence UK,Innovation Directorate,HRG UK,426063821,107.81,Not applicable,
Department for Business Innovation and Skills,Intellectual Property Office,28/11/2014,Travel and subsistence UK,Innovation Directorate,HRG UK,240983479,107.81,Not applicable,
Department for Business Innovation and Skills,Intellectual Property Office,28/11/2014,Travel and subsistence UK,Innovation Directorate,HRG UK,426093813,107.81,Not applicable,
Department for Business Innovation and Skills,Intellectual Property Office,28/11/2014,Travel and subsistence UK,Innovation Directorate,HRG UK,426093952,107.81,Not applicable,
Department for Business Innovation and Skills,Intellectual Property Office,28/11/2014,Travel and subsistence UK,Central Support,HRG UK,426081801,107.81,Not applicable,
Department for Business Innovation and Skills,Intellectual Property Office,28/11/2014,Travel and subsistence UK,Finance Directorate,HRG UK,240951835,108.00,Not applicable,
Department for Business Innovation and Skills,Intellectual Property Office,28/11/2014,Travel and subsistence UK,Copyright and IP Enforcement Directorate,HRG UK,240910560,109.20,Not applicable,
Department for Business Innovation and Skills,Intellectual Property Office,28/11/2014,Travel and subsistence UK,Business Support Directorate,HRG UK,240929094,109.20,Not applicable,
Department for Business Innovation and Skills,Intellectual Property Office,28/11/2014,Travel and subsistence UK,Copyright and IP Enforcement Directorate,HRG UK,426229428,109.20,Not applicable,
Department for Business Innovation and Skills,Intellectual Property Office,12/11/2014,Travel and subsistence UK,Trade Marks Directorate,Personal expenses name witheld,ER126203,109.35,Not applicable,
Department for Business Innovation and Skills,Intellectual Property Office,28/11/2014,Travel and subsistence UK,Innovation Directorate,HRG UK,240989368,109.80,Not applicable,
Department for Business Innovation and Skills,Intellectual Property Office,28/11/2014,Travel and subsistence UK,Innovation Directorate,HRG UK,426182485,110.99,Not applicable,
Department for Business Innovation and Skills,Intellectual Property Office,28/11/2014,Travel and subsistence UK,Innovation Directorate,HRG UK,426194297,111.90,Not applicable,
Department for Business Innovation and Skills,Intellectual Property Office,28/11/2014,Travel and subsistence UK,Innovation Directorate,HRG UK,240983477,112.78,Not applicable,
Department for Business Innovation and Skills,Intellectual Property Office,28/11/2014,Travel and subsistence UK,Copyright and IP Enforcement Directorate,HRG UK,426090607,112.78,Not applicable,
Department for Business Innovation and Skills,Intellectual Property Office,25/11/2014,Travel and subsistence UK,Patents Directorate,Personal expenses name witheld,ER126900,113.18,Not applicable,
Department for Business Innovation and Skills,Intellectual Property Office,28/11/2014,Travel and subsistence UK,Business Support Directorate,HRG UK,240961569,114.39,Not applicable,
Department for Business Innovation and Skills,Intellectual Property Office,28/11/2014,Travel and subsistence UK,Business Support Directorate,HRG UK,426169777,114.39,Not applicable,
Department for Business Innovation and Skills,Intellectual Property Office,28/11/2014,Travel and subsistence UK,Business Support Directorate,HRG UK,426121840,115.18,Not applicable,
Department for Business Innovation and Skills,Intellectual Property Office,21/11/2014,Travel and subsistence UK,Innovation Directorate,Leasedrive Velo Rental Management Ltd,RHI01273870,116.59,Not applicable,
Department for Business Innovation and Skills,Intellectual Property Office,03/11/2014,Travel and subsistence UK,Innovation Directorate,Leasedrive Velo Rental Management Ltd,RHI01256653,116.59,Not applicable,
Department for Business Innovation and Skills,Intellectual Property Office,28/11/2014,Travel and subsistence UK,Business Support Directorate,HRG UK,426169776,117.97,Not applicable,
Department for Business Innovation and Skills,Intellectual Property Office,28/11/2014,Travel and subsistence UK,Business Support Directorate,HRG UK,426160713,118.77,Not applicable,
Department for Business Innovation and Skills,Intellectual Property Office,28/11/2014,Travel and subsistence UK,Business Support Directorate,HRG UK,426229413,118.77,Not applicable,
Department for Business Innovation and Skills,Intellectual Property Office,28/11/2014,Travel and subsistence UK,Business Support Directorate,HRG UK,426168947,118.77,Not applicable,
Department for Business Innovation and Skills,Intellectual Property Office,28/11/2014,Travel and subsistence UK,Business Support Directorate,HRG UK,426121839,118.77,Not applicable,
Department for Business Innovation and Skills,Intellectual Property Office,28/11/2014,Travel and subsistence UK,Business Support Directorate,HRG UK,426043791,118.77,Not applicable,
Department for Business Innovation and Skills,Intellectual Property Office,26/11/2014,Travel and subsistence UK,"People, Property and Services Directorate",Personal expenses name witheld,ER126605,118.82,Not applicable,
Department for Business Innovation and Skills,Intellectual Property Office,26/11/2014,Travel and subsistence UK,Trade Marks Directorate,Holiday Inn Express,2014017572,120.00,Not applicable,
Department for Business Innovation and Skills,Intellectual Property Office,13/11/2014,Travel and subsistence UK,Trade Marks Directorate,Holiday Inn Express,2014017571,120.00,Not applicable,
Department for Business Innovation and Skills,Intellectual Property Office,13/11/2014,Travel and subsistence UK,Trade Marks Directorate,Holiday Inn Express,2014017578,120.00,Not applicable,
Department for Business Innovation and Skills,Intellectual Property Office,18/11/2014,Travel and subsistence UK,Business Support Directorate,Personal expenses name witheld,ER126644,120.30,Not applicable,
Department for Business Innovation and Skills,Intellectual Property Office,03/11/2014,Travel and subsistence UK,Trade Marks Directorate,Personal expenses name witheld,ER125860,121.90,Not applicable,
Department for Business Innovation and Skills,Intellectual Property Office,18/11/2014,Travel and subsistence UK,Patents Directorate,Personal expenses name witheld,ER126666,123.70,Not applicable,
Department for Business Innovation and Skills,Intellectual Property Office,24/11/2014,Travel and subsistence UK,Trade Marks Directorate,Leasedrive Velo Rental Management Ltd,RHI01276392,123.78,Not applicable,
Department for Business Innovation and Skills,Intellectual Property Office,28/11/2014,Travel and subsistence UK,Business Support Directorate,HRG UK,240976871,124.16,Not applicable,
Department for Business Innovation and Skills,Intellectual Property Office,28/11/2014,Travel and subsistence UK,Innovation Directorate,HRG UK,240948087,124.26,Not applicable,
Department for Business Innovation and Skills,Intellectual Property Office,28/11/2014,Travel and subsistence UK,Copyright and IP Enforcement Directorate,HRG UK,240970690,127.15,Not applicable,
Department for Business Innovation and Skills,Intellectual Property Office,04/11/2014,Travel and subsistence UK,"People, Property and Services Directorate",Personal expenses name witheld,ER125958,130.40,Not applicable,
Department for Business Innovation and Skills,Intellectual Property Office,19/11/2014,Travel and subsistence UK,Copyright and IP Enforcement Directorate,Personal expenses name witheld,ER125295,131.80,Not applicable,
Department for Business Innovation and Skills,Intellectual Property Office,18/11/2014,Travel and subsistence UK,Copyright and IP Enforcement Directorate,Personal expenses name witheld,ER126661,131.90,Not applicable,
Department for Business Innovation and Skills,Intellectual Property Office,28/11/2014,Travel and subsistence UK,Innovation Directorate,HRG UK,240952775,135.44,Not applicable,
Department for Business Innovation and Skills,Intellectual Property Office,18/11/2014,Travel and subsistence UK,Business Support Directorate,Personal expenses name witheld,ER126651,139.30,Not applicable,
Department for Business Innovation and Skills,Intellectual Property Office,28/11/2014,Travel and subsistence UK,Patents Directorate,HRG UK,426070392,141.16,Not applicable,
Department for Business Innovation and Skills,Intellectual Property Office,28/11/2014,Travel and subsistence UK,Patents Directorate,HRG UK,426097101,141.45,Not applicable,
Department for Business Innovation and Skills,Intellectual Property Office,04/11/2014,Travel and subsistence UK,Innovation Directorate,Personal expenses name witheld,ER125899,142.60,Not applicable,
Department for Business Innovation and Skills,Intellectual Property Office,13/11/2014,Travel and subsistence UK,Innovation Directorate,Personal expenses name witheld,ER126530,142.90,Not applicable,
Department for Business Innovation and Skills,Intellectual Property Office,03/11/2014,Travel and subsistence UK,International Policy Directorate,Personal expenses name witheld,ER124634,143.45,Not applicable,
Department for Business Innovation and Skills,Intellectual Property Office,07/11/2014,Travel and subsistence UK,Innovation Directorate,Personal expenses name witheld,ER126198,144.20,Not applicable,
Department for Business Innovation and Skills,Intellectual Property Office,17/11/2014,Travel and subsistence UK,Innovation Directorate,Leasedrive Velo Rental Management Ltd,RHI01268405,148.84,Not applicable,
Department for Business Innovation and Skills,Intellectual Property Office,07/11/2014,Travel and subsistence UK,Trade Marks Directorate,Personal expenses name witheld,ER126159,149.65,Not applicable,
Department for Business Innovation and Skills,Intellectual Property Office,20/11/2014,Travel and subsistence UK,Patents Directorate,Leasedrive Velo Rental Management Ltd,RHI01273875,150.19,Not applicable,
Department for Business Innovation and Skills,Intellectual Property Office,20/11/2014,Travel and subsistence UK,Innovation Directorate,Leasedrive Velo Rental Management Ltd,RHI01276006,151.12,Not applicable,
Department for Business Innovation and Skills,Intellectual Property Office,18/11/2014,Travel and subsistence UK,Business Support Directorate,Personal expenses name witheld,ER126404,152.90,Not applicable,
Department for Business Innovation and Skills,Intellectual Property Office,17/11/2014,Travel and subsistence UK,Innovation Directorate,Veezu Ltd T/A Dragon Taxis (Newport),2596,153.90,Not applicable,
Department for Business Innovation and Skills,Intellectual Property Office,17/11/2014,Travel and subsistence UK,Innovation Directorate,Leasedrive Velo Rental Management Ltd,RHI01265619,156.42,Not applicable,
Department for Business Innovation and Skills,Intellectual Property Office,28/11/2014,Travel and subsistence UK,International Policy Directorate,HRG UK,426217403,156.83,Not applicable,
Department for Business Innovation and Skills,Intellectual Property Office,06/11/2014,Travel and subsistence UK,Innovation Directorate,Personal expenses name witheld,ER126141,158.00,Not applicable,
Department for Business Innovation and Skills,Intellectual Property Office,03/11/2014,Travel and subsistence UK,Finance Directorate,Personal expenses name witheld,ER125498,160.20,Not applicable,
Department for Business Innovation and Skills,Intellectual Property Office,25/11/2014,Travel and subsistence UK,International Policy Directorate,Personal expenses name witheld,ER126643,160.80,Not applicable,
Department for Business Innovation and Skills,Intellectual Property Office,28/11/2014,Travel and subsistence UK,Copyright and IP Enforcement Directorate,HRG UK,426198721,161.10,Not applicable,
Department for Business Innovation and Skills,Intellectual Property Office,27/11/2014,Travel and subsistence UK,"People, Property and Services Directorate",Personal expenses name witheld,ER127078,163.15,Not applicable,
Department for Business Innovation and Skills,Intellectual Property Office,12/11/2014,Travel and subsistence UK,International Policy Directorate,Personal expenses name witheld,ER126370,163.55,Not applicable,
Department for Business Innovation and Skills,Intellectual Property Office,25/11/2014,Travel and subsistence UK,Copyright and IP Enforcement Directorate,Personal expenses name witheld,ER126744,164.60,Not applicable,
Department for Business Innovation and Skills,Intellectual Property Office,03/11/2014,Travel and subsistence UK,Innovation Directorate,Personal expenses name witheld,ER125805,167.15,Not applicable,
Department for Business Innovation and Skills,Intellectual Property Office,13/11/2014,Travel and subsistence UK,International Policy Directorate,Personal expenses name witheld,ER126503,167.20,Not applicable,
Department for Business Innovation and Skills,Intellectual Property Office,14/11/2014,Travel and subsistence UK,Innovation Directorate,E Derclaye,52612,167.50,Not applicable,
Department for Business Innovation and Skills,Intellectual Property Office,28/11/2014,Travel and subsistence UK,Trade Marks Directorate,HRG UK,426142438,167.50,Not applicable,
Department for Business Innovation and Skills,Intellectual Property Office,17/11/2014,Travel and subsistence UK,International Policy Directorate,Personal expenses name witheld,ER126624,170.28,Not applicable,
Department for Business Innovation and Skills,Intellectual Property Office,20/11/2014,Travel and subsistence UK,Copyright and IP Enforcement Directorate,Personal expenses name witheld,ER126707,171.69,Not applicable,
Department for Business Innovation and Skills,Intellectual Property Office,17/11/2014,Travel and subsistence UK,Innovation Directorate,Leasedrive Velo Rental Management Ltd,RHI01265618,174.89,Not applicable,
Department for Business Innovation and Skills,Intellectual Property Office,28/11/2014,Travel and subsistence UK,Copyright and IP Enforcement Directorate,Personal expenses name witheld,ER118742,175.00,Not applicable,
Department for Business Innovation and Skills,Intellectual Property Office,17/11/2014,Travel and subsistence UK,Trade Marks Directorate,Personal expenses name witheld,ER126284,175.35,Not applicable,
Department for Business Innovation and Skills,Intellectual Property Office,26/11/2014,Travel and subsistence UK,Patents Directorate,Personal expenses name witheld,ER126896,175.92,Not applicable,
Department for Business Innovation and Skills,Intellectual Property Office,28/11/2014,Travel and subsistence UK,Trade Marks Directorate,Gavin Terry,52629,176.66,Not applicable,
Department for Business Innovation and Skills,Intellectual Property Office,14/11/2014,Travel and subsistence UK,Innovation Directorate,Personal expenses name witheld,ER126551,177.10,Not applicable,
Department for Business Innovation and Skills,Intellectual Property Office,17/11/2014,Travel and subsistence UK,Innovation Directorate,Veezu Ltd T/A Dragon Taxis (Newport),2596,180.60,Not applicable,
Department for Business Innovation and Skills,Intellectual Property Office,13/11/2014,Travel and subsistence UK,Innovation Directorate,Personal expenses name witheld,ER126428,181.36,Not applicable,
Department for Business Innovation and Skills,Intellectual Property Office,03/11/2014,Travel and subsistence UK,International Policy Directorate,Personal expenses name witheld,ER125806,181.65,Not applicable,
Department for Business Innovation and Skills,Intellectual Property Office,03/11/2014,Travel and subsistence UK,Innovation Directorate,Personal expenses name witheld,ER125838,181.90,Not applicable,
Department for Business Innovation and Skills,Intellectual Property Office,05/11/2014,Travel and subsistence UK,Innovation Directorate,Personal expenses name witheld,ER126060,181.90,Not applicable,
Department for Business Innovation and Skills,Intellectual Property Office,05/11/2014,Travel and subsistence UK,Innovation Directorate,Personal expenses name witheld,ER126058,184.65,Not applicable,
Department for Business Innovation and Skills,Intellectual Property Office,28/11/2014,Travel and subsistence UK,Copyright and IP Enforcement Directorate,HRG UK,426123830,187.21,Not applicable,
Department for Business Innovation and Skills,Intellectual Property Office,19/11/2014,Travel and subsistence UK,Innovation Directorate,Personal expenses name witheld,ER126705,191.30,Not applicable,
Department for Business Innovation and Skills,Intellectual Property Office,28/11/2014,Travel and subsistence UK,International Policy Directorate,HRG UK,426102503,192.07,Not applicable,
Department for Business Innovation and Skills,Intellectual Property Office,25/11/2014,Travel and subsistence UK,International Policy Directorate,Personal expenses name witheld,ER126209,193.55,Not applicable,
Department for Business Innovation and Skills,Intellectual Property Office,28/11/2014,Travel and subsistence UK,Finance Directorate,HRG UK,426235378,196.06,Not applicable,
Department for Business Innovation and Skills,Intellectual Property Office,25/11/2014,Travel and subsistence UK,Business Support Directorate,Personal expenses name witheld,ER126978,198.10,Not applicable,
Department for Business Innovation and Skills,Intellectual Property Office,26/11/2014,Travel and subsistence UK,Copyright and IP Enforcement Directorate,Personal expenses name witheld,ER127020,201.35,Not applicable,
Department for Business Innovation and Skills,Intellectual Property Office,28/11/2014,Travel and subsistence UK,Patents Directorate,HRG UK,426065274,202.06,Not applicable,
Department for Business Innovation and Skills,Intellectual Property Office,28/11/2014,Travel and subsistence UK,Patents Directorate,HRG UK,426181144,202.06,Not applicable,
Department for Business Innovation and Skills,Intellectual Property Office,28/11/2014,Travel and subsistence UK,Patents Directorate,HRG UK,426075510,202.06,Not applicable,
Department for Business Innovation and Skills,Intellectual Property Office,28/11/2014,Travel and subsistence UK,Patents Directorate,HRG UK,426180468,202.06,Not applicable,
Department for Business Innovation and Skills,Intellectual Property Office,28/11/2014,Travel and subsistence UK,Patents Directorate,HRG UK,426180663,202.06,Not applicable,
Department for Business Innovation and Skills,Intellectual Property Office,28/11/2014,Travel and subsistence UK,Patents Directorate,HRG UK,426097423,202.06,Not applicable,
Department for Business Innovation and Skills,Intellectual Property Office,28/11/2014,Travel and subsistence UK,International Policy Directorate,HRG UK,426059925,206.04,Not applicable,
Department for Business Innovation and Skills,Intellectual Property Office,28/11/2014,Travel and subsistence UK,Business Support Directorate,HRG UK,240993009,206.04,Not applicable,
Department for Business Innovation and Skills,Intellectual Property Office,28/11/2014,Travel and subsistence UK,Copyright and IP Enforcement Directorate,HRG UK,426065277,206.04,Not applicable,
Department for Business Innovation and Skills,Intellectual Property Office,28/11/2014,Travel and subsistence UK,Copyright and IP Enforcement Directorate,HRG UK,426036368,206.04,Not applicable,
Department for Business Innovation and Skills,Intellectual Property Office,28/11/2014,Travel and subsistence UK,Copyright and IP Enforcement Directorate,HRG UK,426095053,206.04,Not applicable,
Department for Business Innovation and Skills,Intellectual Property Office,28/11/2014,Travel and subsistence UK,Innovation Directorate,HRG UK,426070393,206.04,Not applicable,
Department for Business Innovation and Skills,Intellectual Property Office,28/11/2014,Travel and subsistence UK,Innovation Directorate,HRG UK,240906377,206.04,Not applicable,
Department for Business Innovation and Skills,Intellectual Property Office,28/11/2014,Travel and subsistence UK,International Policy Directorate,HRG UK,426197095,206.04,Not applicable,
Department for Business Innovation and Skills,Intellectual Property Office,20/11/2014,Travel and subsistence UK,"People, Property and Services Directorate",Personal expenses name witheld,ER124873,209.70,Not applicable,
Department for Business Innovation and Skills,Intellectual Property Office,28/11/2014,Travel and subsistence UK,Copyright and IP Enforcement Directorate,HRG UK,426096119,210.13,Not applicable,
Department for Business Innovation and Skills,Intellectual Property Office,05/11/2014,Travel and subsistence UK,Patents Directorate,Personal expenses name witheld,ER124157,210.65,Not applicable,
Department for Business Innovation and Skills,Intellectual Property Office,28/11/2014,Travel and subsistence UK,"People, Property and Services Directorate",HRG UK,426084932,211.02,Not applicable,
Department for Business Innovation and Skills,Intellectual Property Office,28/11/2014,Travel and subsistence UK,Finance Directorate,HRG UK,426036355,212.01,Not applicable,
Department for Business Innovation and Skills,Intellectual Property Office,28/11/2014,Travel and subsistence UK,International Policy Directorate,HRG UK,240961686,212.01,Not applicable,
Department for Business Innovation and Skills,Intellectual Property Office,28/11/2014,Travel and subsistence UK,International Policy Directorate,HRG UK,240984117,212.01,Not applicable,
Department for Business Innovation and Skills,Intellectual Property Office,28/11/2014,Travel and subsistence UK,"People, Property and Services Directorate",HRG UK,426244503,212.01,Not applicable,
Department for Business Innovation and Skills,Intellectual Property Office,28/11/2014,Travel and subsistence UK,Trade Marks Directorate,HRG UK,426036354,212.01,Not applicable,
Department for Business Innovation and Skills,Intellectual Property Office,28/11/2014,Travel and subsistence UK,Trade Marks Directorate,HRG UK,426182441,212.01,Not applicable,
Department for Business Innovation and Skills,Intellectual Property Office,28/11/2014,Travel and subsistence UK,Business Support Directorate,HRG UK,426181374,212.01,Not applicable,
Department for Business Innovation and Skills,Intellectual Property Office,28/11/2014,Travel and subsistence UK,Innovation Directorate,HRG UK,240983475,212.01,Not applicable,
Department for Business Innovation and Skills,Intellectual Property Office,28/11/2014,Travel and subsistence UK,Copyright and IP Enforcement Directorate,HRG UK,426235377,212.01,Not applicable,
Department for Business Innovation and Skills,Intellectual Property Office,28/11/2014,Travel and subsistence UK,Copyright and IP Enforcement Directorate,HRG UK,426223923,212.01,Not applicable,
Department for Business Innovation and Skills,Intellectual Property Office,28/11/2014,Travel and subsistence UK,Patents Directorate,HRG UK,240984114,212.01,Not applicable,
Department for Business Innovation and Skills,Intellectual Property Office,28/11/2014,Travel and subsistence UK,Business Support Directorate,HRG UK,426030898,212.01,Not applicable,
Department for Business Innovation and Skills,Intellectual Property Office,28/11/2014,Travel and subsistence UK,Innovation Directorate,HRG UK,426096470,212.01,Not applicable,
Department for Business Innovation and Skills,Intellectual Property Office,28/11/2014,Travel and subsistence UK,Patents Directorate,HRG UK,426075509,212.01,Not applicable,
Department for Business Innovation and Skills,Intellectual Property Office,28/11/2014,Travel and subsistence UK,Patents Directorate,HRG UK,240962287,212.01,Not applicable,
Department for Business Innovation and Skills,Intellectual Property Office,28/11/2014,Travel and subsistence UK,Trade Marks Directorate,HRG UK,426065276,212.01,Not applicable,
Department for Business Innovation and Skills,Intellectual Property Office,28/11/2014,Travel and subsistence UK,"People, Property and Services Directorate",HRG UK,426036357,212.01,Not applicable,
Department for Business Innovation and Skills,Intellectual Property Office,28/11/2014,Travel and subsistence UK,Business Support Directorate,HRG UK,426187571,212.01,Not applicable,
Department for Business Innovation and Skills,Intellectual Property Office,28/11/2014,Travel and subsistence UK,Innovation Directorate,HRG UK,426092914,212.01,Not applicable,
Department for Business Innovation and Skills,Intellectual Property Office,28/11/2014,Travel and subsistence UK,International Policy Directorate,HRG UK,426197100,212.01,Not applicable,
Department for Business Innovation and Skills,Intellectual Property Office,28/11/2014,Travel and subsistence UK,Business Support Directorate,HRG UK,426198783,212.52,Not applicable,
Department for Business Innovation and Skills,Intellectual Property Office,11/11/2014,Travel and subsistence UK,Innovation Directorate,Personal expenses name witheld,ER126305,213.37,Not applicable,
Department for Business Innovation and Skills,Intellectual Property Office,28/11/2014,Travel and subsistence UK,Business Support Directorate,HRG UK,426027619,213.62,Not applicable,
Department for Business Innovation and Skills,Intellectual Property Office,28/11/2014,Travel and subsistence UK,Innovation Directorate,HRG UK,240935313,216.01,Not applicable,
Department for Business Innovation and Skills,Intellectual Property Office,28/11/2014,Travel and subsistence UK,Innovation Directorate,HRG UK,426178597,216.01,Not applicable,
Department for Business Innovation and Skills,Intellectual Property Office,28/11/2014,Travel and subsistence UK,Innovation Directorate,HRG UK,426065286,216.01,Not applicable,
Department for Business Innovation and Skills,Intellectual Property Office,28/11/2014,Travel and subsistence UK,"People, Property and Services Directorate",HRG UK,426070394,216.01,Not applicable,
Department for Business Innovation and Skills,Intellectual Property Office,06/11/2014,Travel and subsistence UK,"People, Property and Services Directorate",Personal expenses name witheld,ER125799,217.57,Not applicable,
Department for Business Innovation and Skills,Intellectual Property Office,03/11/2014,Travel and subsistence UK,Finance Directorate,Personal expenses name witheld,ER124753,221.15,Not applicable,
Department for Business Innovation and Skills,Intellectual Property Office,28/11/2014,Travel and subsistence UK,Finance Directorate,HRG UK,426224452,221.99,Not applicable,
Department for Business Innovation and Skills,Intellectual Property Office,28/11/2014,Travel and subsistence UK,Patents Directorate,HRG UK,240898975,221.99,Not applicable,
Department for Business Innovation and Skills,Intellectual Property Office,28/11/2014,Travel and subsistence UK,Finance Directorate,HRG UK,426036358,221.99,Not applicable,
Department for Business Innovation and Skills,Intellectual Property Office,28/11/2014,Travel and subsistence UK,"People, Property and Services Directorate",HRG UK,426078863,221.99,Not applicable,
Department for Business Innovation and Skills,Intellectual Property Office,28/11/2014,Travel and subsistence UK,Innovation Directorate,HRG UK,240952401,221.99,Not applicable,
Department for Business Innovation and Skills,Intellectual Property Office,28/11/2014,Travel and subsistence UK,International Policy Directorate,HRG UK,426115657,221.99,Not applicable,
Department for Business Innovation and Skills,Intellectual Property Office,28/11/2014,Travel and subsistence UK,Business Support Directorate,HRG UK,426252515,221.99,Not applicable,
Department for Business Innovation and Skills,Intellectual Property Office,28/11/2014,Travel and subsistence UK,Trade Marks Directorate,HRG UK,426100771,221.99,Not applicable,
Department for Business Innovation and Skills,Intellectual Property Office,28/11/2014,Travel and subsistence UK,Business Support Directorate,HRG UK,426252516,221.99,Not applicable,
Department for Business Innovation and Skills,Intellectual Property Office,28/11/2014,Travel and subsistence UK,International Policy Directorate,HRG UK,240967999,221.99,Not applicable,
Department for Business Innovation and Skills,Intellectual Property Office,28/11/2014,Travel and subsistence UK,Patents Directorate,HRG UK,426224917,222.40,Not applicable,
Department for Business Innovation and Skills,Intellectual Property Office,28/11/2014,Travel and subsistence UK,Patents Directorate,HRG UK,426224915,222.40,Not applicable,
Department for Business Innovation and Skills,Intellectual Property Office,10/11/2014,Travel and subsistence UK,Trade Marks Directorate,Personal expenses name witheld,ER126283,222.75,Not applicable,
Department for Business Innovation and Skills,Intellectual Property Office,21/11/2014,Travel and subsistence UK,Innovation Directorate,Personal expenses name witheld,ER126854,223.02,Not applicable,
Department for Business Innovation and Skills,Intellectual Property Office,28/11/2014,Travel and subsistence UK,"People, Property and Services Directorate",HRG UK,426096118,226.08,Not applicable,
Department for Business Innovation and Skills,Intellectual Property Office,05/11/2014,Travel and subsistence UK,International Policy Directorate,Personal expenses name witheld,ER125717,226.95,Not applicable,
Department for Business Innovation and Skills,Intellectual Property Office,17/11/2014,Travel and subsistence UK,Business Support Directorate,Personal expenses name witheld,ER126205,228.20,Not applicable,
Department for Business Innovation and Skills,Intellectual Property Office,27/11/2014,Travel and subsistence UK,"People, Property and Services Directorate",Personal expenses name witheld,ER127117,232.27,Not applicable,
Department for Business Innovation and Skills,Intellectual Property Office,28/11/2014,Travel and subsistence UK,Trade Marks Directorate,HRG UK,240983485,233.95,Not applicable,
Department for Business Innovation and Skills,Intellectual Property Office,28/11/2014,Travel and subsistence UK,Business Support Directorate,HRG UK,426229411,233.95,Not applicable,
Department for Business Innovation and Skills,Intellectual Property Office,28/11/2014,Travel and subsistence UK,Trade Marks Directorate,HRG UK,426098443,233.95,Not applicable,
Department for Business Innovation and Skills,Intellectual Property Office,28/11/2014,Travel and subsistence UK,Trade Marks Directorate,HRG UK,426093616,233.95,Not applicable,
Department for Business Innovation and Skills,Intellectual Property Office,28/11/2014,Travel and subsistence UK,Trade Marks Directorate,HRG UK,426024843,234.96,Not applicable,
Department for Business Innovation and Skills,Intellectual Property Office,17/11/2014,Travel and subsistence UK,International Policy Directorate,Veezu Ltd T/A Dragon Taxis (Newport),2596,235.20,Not applicable,
Department for Business Innovation and Skills,Intellectual Property Office,10/11/2014,Travel and subsistence UK,Patents Directorate,Personal expenses name witheld,ER126210,240.73,Not applicable,
Department for Business Innovation and Skills,Intellectual Property Office,03/11/2014,Travel and subsistence UK,Innovation Directorate,Personal expenses name witheld,ER125807,245.12,Not applicable,
Department for Business Innovation and Skills,Intellectual Property Office,17/11/2014,Travel and subsistence UK,Copyright and IP Enforcement Directorate,Personal expenses name witheld,ER122989,246.20,Not applicable,
Department for Business Innovation and Skills,Intellectual Property Office,07/11/2014,Travel and subsistence UK,"People, Property and Services Directorate",Personal expenses name witheld,ER126200,246.45,Not applicable,
Department for Business Innovation and Skills,Intellectual Property Office,17/11/2014,Travel and subsistence UK,Copyright and IP Enforcement Directorate,Veezu Ltd T/A Dragon Taxis (Newport),2596,247.20,Not applicable,
Department for Business Innovation and Skills,Intellectual Property Office,18/11/2014,Travel and subsistence UK,Innovation Directorate,Personal expenses name witheld,ER126366,249.47,Not applicable,
Department for Business Innovation and Skills,Intellectual Property Office,28/11/2014,Travel and subsistence UK,Copyright and IP Enforcement Directorate,HRG UK,426114141,259.81,Not applicable,
Department for Business Innovation and Skills,Intellectual Property Office,05/11/2014,Travel and subsistence UK,Patents Directorate,Personal expenses name witheld,ER125959,262.50,Not applicable,
Department for Business Innovation and Skills,Intellectual Property Office,13/11/2014,Travel and subsistence UK,Trade Marks Directorate,Personal expenses name witheld,ER126483,264.78,Not applicable,
Department for Business Innovation and Skills,Intellectual Property Office,11/11/2014,Travel and subsistence UK,Patents Directorate,Personal expenses name witheld,ER125804,270.65,Not applicable,
Department for Business Innovation and Skills,Intellectual Property Office,17/11/2014,Travel and subsistence UK,Innovation Directorate,Personal expenses name witheld,ER126584,271.35,Not applicable,
Department for Business Innovation and Skills,Intellectual Property Office,12/11/2014,Travel and subsistence UK,Innovation Directorate,Personal expenses name witheld,ER126369,279.35,Not applicable,
Department for Business Innovation and Skills,Intellectual Property Office,18/11/2014,Travel and subsistence UK,Patents Directorate,Personal expenses name witheld,ER126685,280.20,Not applicable,
Department for Business Innovation and Skills,Intellectual Property Office,27/11/2014,Travel and subsistence UK,"People, Property and Services Directorate",Personal expenses name witheld,ER127118,280.80,Not applicable,
Department for Business Innovation and Skills,Intellectual Property Office,11/11/2014,Travel and subsistence UK,Copyright and IP Enforcement Directorate,Personal expenses name witheld,ER124713,284.15,Not applicable,
Department for Business Innovation and Skills,Intellectual Property Office,03/11/2014,Travel and subsistence UK,Innovation Directorate,Personal expenses name witheld,ER125800,308.80,Not applicable,
Department for Business Innovation and Skills,Intellectual Property Office,06/11/2014,Travel and subsistence UK,Innovation Directorate,Personal expenses name witheld,ER126098,317.80,Not applicable,
Department for Business Innovation and Skills,Intellectual Property Office,25/11/2014,Travel and subsistence UK,Copyright and IP Enforcement Directorate,Personal expenses name witheld,ER126924,324.94,Not applicable,
Department for Business Innovation and Skills,Intellectual Property Office,05/11/2014,Travel and subsistence UK,International Policy Directorate,Personal expenses name witheld,ER125812,333.40,Not applicable,
Department for Business Innovation and Skills,Intellectual Property Office,06/11/2014,Travel and subsistence UK,Innovation Directorate,Personal expenses name witheld,ER126101,337.05,Not applicable,
Department for Business Innovation and Skills,Intellectual Property Office,26/11/2014,Travel and subsistence UK,Copyright and IP Enforcement Directorate,Personal expenses name witheld,ER126855,337.50,Not applicable,
Department for Business Innovation and Skills,Intellectual Property Office,28/11/2014,Travel and subsistence UK,Business Support Directorate,HRG UK,240980805,339.27,Not applicable,
Department for Business Innovation and Skills,Intellectual Property Office,21/11/2014,Travel and subsistence UK,International Policy Directorate,Personal expenses name witheld,ER126804,340.90,Not applicable,
Department for Business Innovation and Skills,Intellectual Property Office,21/11/2014,Travel and subsistence UK,Innovation Directorate,Personal expenses name witheld,ER126798,348.12,Not applicable,
Department for Business Innovation and Skills,Intellectual Property Office,27/11/2014,Travel and subsistence UK,"People, Property and Services Directorate",Personal expenses name witheld,ER127077,352.85,Not applicable,
Department for Business Innovation and Skills,Intellectual Property Office,21/11/2014,Travel and subsistence UK,Innovation Directorate,Personal expenses name witheld,ER126795,355.37,Not applicable,
Department for Business Innovation and Skills,Intellectual Property Office,25/11/2014,Travel and subsistence UK,Patents Directorate,Personal expenses name witheld,ER126764,371.35,Not applicable,
Department for Business Innovation and Skills,Intellectual Property Office,03/11/2014,Travel and subsistence UK,International Policy Directorate,Personal expenses name witheld,ER125811,376.40,Not applicable,
Department for Business Innovation and Skills,Intellectual Property Office,18/11/2014,Travel and subsistence UK,Innovation Directorate,Personal expenses name witheld,ER126647,377.85,Not applicable,
Department for Business Innovation and Skills,Intellectual Property Office,26/11/2014,Travel and subsistence UK,Business Support Directorate,Personal expenses name witheld,ER126897,386.50,Not applicable,
Department for Business Innovation and Skills,Intellectual Property Office,18/11/2014,Travel and subsistence UK,Patents Directorate,Personal expenses name witheld,ER126623,395.65,Not applicable,
Department for Business Innovation and Skills,Intellectual Property Office,19/11/2014,Travel and subsistence UK,Innovation Directorate,Personal expenses name witheld,ER126708,424.05,Not applicable,
Department for Business Innovation and Skills,Intellectual Property Office,07/11/2014,Travel and subsistence UK,Innovation Directorate,Personal expenses name witheld,ER126199,451.05,Not applicable,
Department for Business Innovation and Skills,Intellectual Property Office,13/11/2014,Travel and subsistence UK,"People, Property and Services Directorate",Personal expenses name witheld,ER125379,464.10,Not applicable,
Department for Business Innovation and Skills,Intellectual Property Office,19/11/2014,Travel and subsistence UK,"People, Property and Services Directorate",Personal expenses name witheld,ER125379,464.10,Not applicable,
Department for Business Innovation and Skills,Intellectual Property Office,12/11/2014,Travel and subsistence UK,Innovation Directorate,Personal expenses name witheld,ER126285,488.35,Not applicable,
Department for Business Innovation and Skills,Intellectual Property Office,21/11/2014,Travel and subsistence UK,Innovation Directorate,Personal expenses name witheld,ER126796,512.78,Not applicable,
Department for Business Innovation and Skills,Intellectual Property Office,21/11/2014,Travel and subsistence UK,International Policy Directorate,Personal expenses name witheld,ER126797,544.31,Not applicable,
Department for Business Innovation and Skills,Intellectual Property Office,18/11/2014,Travel and subsistence UK,"People, Property and Services Directorate",Personal expenses name witheld,ER126667,547.20,Not applicable,
Department for Business Innovation and Skills,Intellectual Property Office,05/11/2014,Travel and subsistence UK,International Policy Directorate,Personal expenses name witheld,ER126078,617.75,Not applicable,
Department for Business Innovation and Skills,Intellectual Property Office,17/11/2014,Travel and subsistence UK,Business Support Directorate,Personal expenses name witheld,ER123940,617.90,Not applicable,
Department for Business Innovation and Skills,Intellectual Property Office,24/11/2014,Travel and subsistence UK,Trade Marks Directorate,Cronin AM,52620,625.35,Not applicable,
Department for Business Innovation and Skills,Intellectual Property Office,28/11/2014,Travel and subsistence UK,Copyright and IP Enforcement Directorate,Personal expenses name witheld,ER127120,788.55,Not applicable,
Department for Business Innovation and Skills,Intellectual Property Office,25/11/2014,Travel and subsistence UK,Copyright and IP Enforcement Directorate,Personal expenses name witheld,ER126883,811.00,Not applicable,
Department for Business Innovation and Skills,Intellectual Property Office,11/11/2014,Travel and subsistence UK,Business Support Directorate,Personal expenses name witheld,ER126303,819.20,Not applicable,
Department for Business Innovation and Skills,Intellectual Property Office,11/11/2014,Travel and subsistence UK,Business Support Directorate,Personal expenses name witheld,ER126288,819.90,Not applicable,
Department for Business Innovation and Skills,Intellectual Property Office,18/11/2014,Travel and subsistence UK,Business Support Directorate,Swain N,ER126654,972.45,Not applicable,
Department for Business Innovation and Skills,Intellectual Property Office,18/11/2014,Travel and subsistence UK,Business Support Directorate,Personal expenses name witheld,ER126664,1031.55,Not applicable,
Department for Business Innovation and Skills,Intellectual Property Office,18/11/2014,Travel and subsistence UK,Innovation Directorate,Personal expenses name witheld,ER126648,1236.71,Not applicable,
Department for Business Innovation and Skills,Intellectual Property Office,03/11/2014,Travel and subsistence UK,Innovation Directorate,Personal expenses name witheld,ER125780,2201.19,Not applicable,
Department for Business Innovation and Skills,Intellectual Property Office,28/11/2014,Travel and subsistence Overseas,International Policy Directorate,HRG UK,689053135,-2346.56,Not applicable,
Department for Business Innovation and Skills,Intellectual Property Office,28/11/2014,Travel and subsistence Overseas,International Policy Directorate,HRG UK,426141948,2.57,Not applicable,
Department for Business Innovation and Skills,Intellectual Property Office,28/11/2014,Travel and subsistence Overseas,Copyright and IP Enforcement Directorate,HRG UK,240994207,2.57,Not applicable,
Department for Business Innovation and Skills,Intellectual Property Office,28/11/2014,Travel and subsistence Overseas,International Policy Directorate,HRG UK,240896417,2.57,Not applicable,
Department for Business Innovation and Skills,Intellectual Property Office,28/11/2014,Travel and subsistence Overseas,Patents Directorate,HRG UK,426090883,2.57,Not applicable,
Department for Business Innovation and Skills,Intellectual Property Office,28/11/2014,Travel and subsistence Overseas,International Policy Directorate,HRG UK,240917061,2.57,Not applicable,
Department for Business Innovation and Skills,Intellectual Property Office,28/11/2014,Travel and subsistence Overseas,International Policy Directorate,HRG UK,240916610,2.57,Not applicable,
Department for Business Innovation and Skills,Intellectual Property Office,28/11/2014,Travel and subsistence Overseas,Innovation Directorate,HRG UK,426077612,2.57,Not applicable,
Department for Business Innovation and Skills,Intellectual Property Office,28/11/2014,Travel and subsistence Overseas,Innovation Directorate,HRG UK,240896038,2.57,Not applicable,
Department for Business Innovation and Skills,Intellectual Property Office,28/11/2014,Travel and subsistence Overseas,International Policy Directorate,HRG UK,426155142,2.57,Not applicable,
Department for Business Innovation and Skills,Intellectual Property Office,28/11/2014,Travel and subsistence Overseas,Innovation Directorate,HRG UK,426077623,2.57,Not applicable,
Department for Business Innovation and Skills,Intellectual Property Office,28/11/2014,Travel and subsistence Overseas,Patents Directorate,HRG UK,426189950,2.57,Not applicable,
Department for Business Innovation and Skills,Intellectual Property Office,28/11/2014,Travel and subsistence Overseas,Central Support,HRG UK,426054229,2.57,Not applicable,
Department for Business Innovation and Skills,Intellectual Property Office,28/11/2014,Travel and subsistence Overseas,Business Support Directorate,HRG UK,426141912,2.57,Not applicable,
Department for Business Innovation and Skills,Intellectual Property Office,28/11/2014,Travel and subsistence Overseas,International Policy Directorate,HRG UK,426012065,2.57,Not applicable,
Department for Business Innovation and Skills,Intellectual Property Office,28/11/2014,Travel and subsistence Overseas,International Policy Directorate,HRG UK,426141979,2.57,Not applicable,
Department for Business Innovation and Skills,Intellectual Property Office,28/11/2014,Travel and subsistence Overseas,International Policy Directorate,HRG UK,240916613,2.57,Not applicable,
Department for Business Innovation and Skills,Intellectual Property Office,28/11/2014,Travel and subsistence Overseas,Finance Directorate,HRG UK,426208204,2.57,Not applicable,
Department for Business Innovation and Skills,Intellectual Property Office,28/11/2014,Travel and subsistence Overseas,International Policy Directorate,HRG UK,240896423,2.57,Not applicable,
Department for Business Innovation and Skills,Intellectual Property Office,28/11/2014,Travel and subsistence Overseas,Copyright and IP Enforcement Directorate,HRG UK,426155177,2.57,Not applicable,
Department for Business Innovation and Skills,Intellectual Property Office,28/11/2014,Travel and subsistence Overseas,Copyright and IP Enforcement Directorate,HRG UK,240945720,2.57,Not applicable,
Department for Business Innovation and Skills,Intellectual Property Office,28/11/2014,Travel and subsistence Overseas,Innovation Directorate,HRG UK,426176027,2.57,Not applicable,
Department for Business Innovation and Skills,Intellectual Property Office,28/11/2014,Travel and subsistence Overseas,Trade Marks Directorate,HRG UK,240931009,2.57,Not applicable,
Department for Business Innovation and Skills,Intellectual Property Office,28/11/2014,Travel and subsistence Overseas,International Policy Directorate,HRG UK,426175556,2.57,Not applicable,
Department for Business Innovation and Skills,Intellectual Property Office,28/11/2014,Travel and subsistence Overseas,International Policy Directorate,HRG UK,240896487,2.57,Not applicable,
Department for Business Innovation and Skills,Intellectual Property Office,28/11/2014,Travel and subsistence Overseas,International Policy Directorate,HRG UK,240916508,2.57,Not applicable,
Department for Business Innovation and Skills,Intellectual Property Office,28/11/2014,Travel and subsistence Overseas,International Policy Directorate,HRG UK,240916612,2.57,Not applicable,
Department for Business Innovation and Skills,Intellectual Property Office,28/11/2014,Travel and subsistence Overseas,International Policy Directorate,HRG UK,240960851,2.57,Not applicable,
Department for Business Innovation and Skills,Intellectual Property Office,28/11/2014,Travel and subsistence Overseas,Business Support Directorate,HRG UK,240996511,2.57,Not applicable,
Department for Business Innovation and Skills,Intellectual Property Office,28/11/2014,Travel and subsistence Overseas,Patents Directorate,HRG UK,426207108,2.57,Not applicable,
Department for Business Innovation and Skills,Intellectual Property Office,28/11/2014,Travel and subsistence Overseas,Innovation Directorate,HRG UK,426174763,4.11,Not applicable,
Department for Business Innovation and Skills,Intellectual Property Office,28/11/2014,Travel and subsistence Overseas,Copyright and IP Enforcement Directorate,HRG UK,426090922,4.11,Not applicable,
Department for Business Innovation and Skills,Intellectual Property Office,28/11/2014,Travel and subsistence Overseas,International Policy Directorate,HRG UK,240917030,5.65,Not applicable,
Department for Business Innovation and Skills,Intellectual Property Office,28/11/2014,Travel and subsistence Overseas,Trade Marks Directorate,HRG UK,426091300,5.65,Not applicable,
Department for Business Innovation and Skills,Intellectual Property Office,28/11/2014,Travel and subsistence Overseas,International Policy Directorate,HRG UK,240917025,5.65,Not applicable,
Department for Business Innovation and Skills,Intellectual Property Office,28/11/2014,Travel and subsistence Overseas,Central Support,HRG UK,426155225,5.65,Not applicable,
Department for Business Innovation and Skills,Intellectual Property Office,28/11/2014,Travel and subsistence Overseas,International Policy Directorate,HRG UK,240931245,5.65,Not applicable,
Department for Business Innovation and Skills,Intellectual Property Office,28/11/2014,Travel and subsistence Overseas,Patents Directorate,HRG UK,426106481,5.65,Not applicable,
Department for Business Innovation and Skills,Intellectual Property Office,28/11/2014,Travel and subsistence Overseas,International Policy Directorate,HRG UK,240917028,5.65,Not applicable,
Department for Business Innovation and Skills,Intellectual Property Office,28/11/2014,Travel and subsistence Overseas,International Policy Directorate,HRG UK,240931244,5.65,Not applicable,
Department for Business Innovation and Skills,Intellectual Property Office,28/11/2014,Travel and subsistence Overseas,International Policy Directorate,HRG UK,240995295,5.65,Not applicable,
Department for Business Innovation and Skills,Intellectual Property Office,28/11/2014,Travel and subsistence Overseas,International Policy Directorate,HRG UK,426055094,8.22,Not applicable,
Department for Business Innovation and Skills,Intellectual Property Office,28/11/2014,Travel and subsistence Overseas,Business Support Directorate,HRG UK,240963573,9.72,Not applicable,
Department for Business Innovation and Skills,Intellectual Property Office,28/11/2014,Travel and subsistence Overseas,Trade Marks Directorate,HRG UK,165606601,14.32,Not applicable,
Department for Business Innovation and Skills,Intellectual Property Office,28/11/2014,Travel and subsistence Overseas,Trade Marks Directorate,HRG UK,165606590,14.32,Not applicable,
Department for Business Innovation and Skills,Intellectual Property Office,28/11/2014,Travel and subsistence Overseas,International Policy Directorate,HRG UK,240999374,14.32,Not applicable,
Department for Business Innovation and Skills,Intellectual Property Office,28/11/2014,Travel and subsistence Overseas,Trade Marks Directorate,HRG UK,165606600,14.32,Not applicable,
Department for Business Innovation and Skills,Intellectual Property Office,28/11/2014,Travel and subsistence Overseas,Trade Marks Directorate,HRG UK,165608859,14.32,Not applicable,
Department for Business Innovation and Skills,Intellectual Property Office,28/11/2014,Travel and subsistence Overseas,Trade Marks Directorate,HRG UK,165608863,14.32,Not applicable,
Department for Business Innovation and Skills,Intellectual Property Office,28/11/2014,Travel and subsistence Overseas,Central Support,HRG UK,240877067A,16.37,Not applicable,
Department for Business Innovation and Skills,Intellectual Property Office,28/11/2014,Travel and subsistence Overseas,Business Support Directorate,HRG UK,426181831,16.45,Not applicable,
Department for Business Innovation and Skills,Intellectual Property Office,10/11/2014,Travel and subsistence Overseas,Innovation Directorate,Personal expenses name witheld,ER126179,37.15,Not applicable,
Department for Business Innovation and Skills,Intellectual Property Office,18/11/2014,Travel and subsistence Overseas,Trade Marks Directorate,Personal expenses name witheld,52616,39.14,Not applicable,
Department for Business Innovation and Skills,Intellectual Property Office,14/11/2014,Travel and subsistence Overseas,Innovation Directorate,Personal expenses name witheld,ER126554,41.55,Not applicable,
Department for Business Innovation and Skills,Intellectual Property Office,28/11/2014,Travel and subsistence Overseas,Trade Marks Directorate,HRG UK,165608858,42.96,Not applicable,
Department for Business Innovation and Skills,Intellectual Property Office,28/11/2014,Travel and subsistence Overseas,International Policy Directorate,HRG UK,240983488,43.38,Not applicable,
Department for Business Innovation and Skills,Intellectual Property Office,28/11/2014,Travel and subsistence Overseas,International Policy Directorate,HRG UK,240922861,48.08,Not applicable,
Department for Business Innovation and Skills,Intellectual Property Office,28/11/2014,Travel and subsistence Overseas,Patents Directorate,HRG UK,240922789,48.08,Not applicable,
Department for Business Innovation and Skills,Intellectual Property Office,05/11/2014,Travel and subsistence Overseas,Patents Directorate,Leasedrive Velo Rental Management Ltd,RHI01261532,49.42,Not applicable,
Department for Business Innovation and Skills,Intellectual Property Office,26/11/2014,Travel and subsistence Overseas,International Policy Directorate,Personal expenses name witheld,ER126808,51.94,Not applicable,
Department for Business Innovation and Skills,Intellectual Property Office,12/11/2014,Travel and subsistence Overseas,Innovation Directorate,Personal expenses name witheld,ER126387,56.53,Not applicable,
Department for Business Innovation and Skills,Intellectual Property Office,20/11/2014,Travel and subsistence Overseas,Trade Marks Directorate,Personal expenses name witheld,ER126224,63.01,Not applicable,
Department for Business Innovation and Skills,Intellectual Property Office,28/11/2014,Travel and subsistence Overseas,Copyright and IP Enforcement Directorate,HRG UK,240941705,71.61,Not applicable,
Department for Business Innovation and Skills,Intellectual Property Office,28/11/2014,Travel and subsistence Overseas,Copyright and IP Enforcement Directorate,HRG UK,240941903,71.61,Not applicable,
Department for Business Innovation and Skills,Intellectual Property Office,26/11/2014,Travel and subsistence Overseas,Copyright and IP Enforcement Directorate,Personal expenses name witheld,ER126923,78.50,Not applicable,
Department for Business Innovation and Skills,Intellectual Property Office,28/11/2014,Travel and subsistence Overseas,Patents Directorate,HRG UK,426083472,81.57,Not applicable,
